{"text_format":"3","workbook":"xlsx","n_sheets":5,"sheets":["Matriz","Priorizacion riesgos","Matriz Priorizada","Clasificacion factores de riesg","Instructivo"],"not_rendered":{"images":1,"macros":1,"defined_names":6,"comments":1},"read":"whole","date_system":"1900"}

{"sheet":"Matriz","index":0,"n_rows":48,"n_cols":34,"rows_kept":48,"merged":[[1,1,1,2],[1,3,1,5],[1,6,1,7],[1,8,1,12],[1,13,5,14],[2,1,2,2],[2,3,2,5],[2,6,2,7],[2,8,2,12],[3,1,3,2],[3,3,3,5],[3,6,3,7],[3,8,3,12],[4,1,4,2],[4,3,4,5],[4,6,4,7],[4,8,4,12],[5,1,5,2],[5,3,5,5],[5,6,5,7],[5,8,5,12],[6,1,6,28],[7,1,7,28],[8,1,13,1],[8,2,13,2],[8,3,13,3],[8,4,13,4],[8,5,10,8],[8,9,13,9],[8,10,10,12],[8,13,10,19],[8,20,10,20],[8,21,10,23],[8,24,10,28],[11,5,13,5],[11,6,13,6],[11,7,13,8],[11,10,13,10],[11,11,13,11],[11,12,13,12],[11,13,13,13],[11,14,13,14],[11,15,13,15],[11,16,13,16],[11,17,13,17],[11,18,13,18],[11,19,13,19],[11,20,13,20],[11,21,13,21],[11,22,13,22],[11,23,13,23],[11,24,13,24],[11,25,13,25],[11,26,13,26],[11,27,13,27],[11,28,13,28],[14,1,23,1],[14,2,23,2],[14,3,23,3],[14,4,23,4],[14,7,14,8],[15,7,15,8],[16,7,16,8],[17,7,17,8],[18,7,18,8],[19,7,19,8],[20,7,20,8],[21,7,21,8],[22,7,22,8],[23,7,23,8],[24,1,46,1],[24,2,37,2],[24,3,37,3],[24,4,37,4],[24,7,24,8],[25,7,25,8],[26,7,26,8],[27,7,27,8],[28,7,28,8],[29,7,29,8],[30,7,30,8],[31,7,31,8],[32,7,32,8],[33,7,33,8],[34,7,34,8],[35,7,35,8],[36,7,36,8],[37,7,37,8],[38,2,46,2],[38,3,46,3],[38,4,46,4],[38,7,38,8],[39,7,39,8],[40,7,40,8],[41,7,41,8],[42,7,42,8],[43,7,43,8],[44,7,44,8],[45,7,45,8],[46,7,46,8],[47,1,47,2],[47,3,47,6],[47,8,47,11],[47,12,47,14],[47,15,47,18],[47,19,47,28],[61,5,62,5],[64,1,96,1],[64,5,66,5],[66,7,66,8],[67,7,67,8],[68,7,68,8],[69,7,69,8],[70,5,71,5],[70,7,70,8],[71,7,71,8],[72,5,74,5],[72,7,72,8],[73,6,74,6],[73,7,73,8],[74,7,74,8],[75,5,76,5],[75,7,75,8],[76,7,76,8],[77,5,80,5],[77,7,77,8],[78,7,78,8],[79,7,79,8],[80,7,80,8],[81,5,84,5],[81,7,81,8],[82,7,82,8],[83,7,83,8],[84,7,84,8],[85,5,88,5],[85,7,85,8],[86,7,86,8],[87,7,87,8],[88,7,88,8],[89,5,93,5],[89,7,89,8],[90,7,90,8],[91,7,91,8],[92,7,92,8],[93,7,93,8],[94,5,95,5],[94,7,94,8],[95,7,95,8],[96,7,96,8],[97,1,129,1],[97,5,99,5],[97,7,97,8],[98,7,98,8],[99,7,99,8],[100,7,100,8],[101,7,101,8],[102,7,102,8],[103,5,104,5],[103,7,103,8],[104,7,104,8],[105,5,107,5],[105,7,105,8],[106,6,107,6],[106,7,106,8],[107,7,107,8],[108,5,109,5],[108,7,108,8],[109,7,109,8],[110,5,113,5],[110,7,110,8],[111,7,111,8],[112,7,112,8],[113,7,113,8],[114,5,116,5],[114,7,114,8],[115,7,115,8],[116,7,116,8],[117,5,119,5],[117,7,117,8],[118,7,118,8],[119,7,119,8],[120,5,124,5],[120,7,120,8],[121,7,121,8],[122,7,122,8],[123,6,124,6],[123,7,123,8],[124,7,124,8],[125,5,126,5],[125,7,125,8],[126,7,126,8],[127,7,127,8],[128,7,128,8],[129,7,129,8],[130,1,162,1],[130,7,130,8],[131,7,131,8],[163,1,196,1],[197,1,229,1],[230,1,259,1],[260,1,272,1],[273,1,295,1],[296,1,318,1],[319,1,343,1],[344,1,368,1]]}
[{"$nulls":31},0,1,10]
[null,"RAZÓN SOCIAL:",{"$nulls":4},"NIT:",{"$nulls":24},2,2,25]
[null,"REPRESENTANTE LEGAL:",{"$nulls":4},"ENCARGADO DEL SG-SST:",{"$nulls":24},6,3,60]
[null,"DIRECCIÓN:",{"$nulls":4},"ELABORADO POR:",{"$nulls":24},10,4,100]
[null,"FECHA DE ELABORACIÓN:",null,"2018-01-01",null,null,"CENTROS DE TRABAJO:",null,1]
[null,"ACTIVIDAD ECONÓMICA:",null,"COMERCIO AL POR MENOR DE COMBUSTRIBLE PARA AUTOMOTORES",null,null,"NÚMERO DE TRABAJADORES:",null,2]
[]
[null,"MATRIZ DE IDENTIFICACIÓN DE PELIGROS Y VALORACION DE RIESGOS DECRETO 1072 DE 2015 ARTÍCULO 2.2.4.6.15."]
[null,"Proceso","Área/lugar","Actividades","Rutinaria       (si o no)","Peligro",{"$nulls":3},"Efectos posibles","Control existente",null,null,"Evaluación del riesgo",{"$nulls":6},"Valoración del riesgo","Criterios para establecer controles",null,null,"Medidas de intervención"]
[]
[]
[{"$nulls":5},"Clasificación","Factor del riesgo","Peligros",null,null,"Fuente","Medio","Persona","(ND) Nivel de deficiencia ","(NE) Nivel de exposición ","(NP) Nivel de probabilidad (ND x NE)","Interpretación del nivel de probabilidad","Nivel de consecuencia","(NR) Nivel de riesgo  e intervención (NPxNC)","Interpretación del NR","Aceptabilidad del riesgo","Nro. de expuestos","Peor consecuencia","Existencia requisito legal especifico asociado (Si o No)","Eliminación","Sustitución","Controles de ingeniería","Controles administrativos, Señalización y advertencias","Equipos/elementos de protección personal"]
[]
[]
[null,"ADMINISTRACION","Area Administrativa","Desarrollo de actividades de Administración ( Registro y manejo de Caja menor,  Pago a proveedores y servicios, Atención a clientes, Registro de ventas de productos y lubricantes para vehículos.\n","SI","Biológico","Bacterias, hongos, virus.","Recepción de pagos en efectivo (billetes, monedas)",null,"Infecciones, alergias, contagio de enfermedades a causa de virus o bacterias","Ninguno","Ninguno","Ninguno",2,2,{"$f":"N15*O15","v":4},{"$f":"IF(P15=\"\",\"\",IF(P15<=4,\"BAJO\",IF(P15<=8,\"MEDIO\",IF(P15<=20,\"ALTO\",\"MUY ALTO\"))))","v":"BAJO"},25,{"$f":"P15*R15","v":100},{"$f":"IF(S15=\"\",\"\",IF(S15<=20,\"IV\",IF(S15<=120,\"III\",IF(S15<=500,\"II\",\"I\"))))","v":"III"},{"$f":"IF(S15=\"\",\"\",IF(S15<=20,\"ACEPTABLE\",IF(S15<=120,\"MEJORABLE\",IF(S15<=500,\"ACEPTABLE O CON CONTROL ESPECIFICO\",\"NO ACEPTABLE\"))))","v":"MEJORABLE"},1,"Contagio de enfermedades graves o mortales transmitidas por virosis ","Resolución 2400 de 1979, Ley 9 de 1979","N.A","N.A","Actividades de Orden y Aseo\nJornadas de Fumigacion","Implementación de estándares de bioseguridad para la prevención de enfermedades infectocontagiosas","Uso de tapabocas, y guantes de látex y jabón antibacterial para la realización de la tarea "]
[{"$nulls":5},"Fisico","Deterioro de la visión","RADIACIONES NO IONIZANTES (Por iluminacion artificial, panllas de los computadores, ondas radiactivas)",null,"Fatiga Ocular, Irritacion de los ojos, Dolor de cabeza","Ninguno","Ninguno","Ninguno",2,2,{"$f":"N16*O16","v":4},"BAJO",25,100,{"$f":"IF(S16=\"\",\"\",IF(S16<=20,\"IV\",IF(S16<=120,\"III\",IF(S16<=500,\"II\",\"I\"))))","v":"III"},"MEJORABLE",1,null,null,"Reubicación puesto de trabajo","Abrir licitación para el mantenimiento de los computadores","se recomienda realizar mantenimientos periodicos a los equipos de computo","N.A","Gafas medicadas o con filtro especial"]
[{"$nulls":5},"Físico","Ruido","Vehículos de carga (tracto mulas, camiones, etc.)",null,"Problemas auditivos, fatiga mental, cefaleas.","Ninguno","Ninguno","Ninguno",2,2,{"$f":"N17*O17","v":4},"BAJO",10,40,"III","MEJORABLE",1,"Generación de Enfermedad laborar hipoacusias","Resolución 2400 de 1979, Ley 9 de 1979","N.A","N.A","N.A","Implementación de estándares de seguridad para ingreso de vehículos, Instalación de señalización que indique apagar el motor y el no uso de la bocina durante el cargue de combustible.","N.A"]
[{"$nulls":5},"Psicosocial","Gestión organizacional. Condiciones de la tarea.","Ausencia de programas de inducción, Ausencia de manual de funciones. Trabajos con ritmo de trabajo intenso o monótono.",null,"Problemas cardiovasculares, Estrés, cefaleas, gastritis etc. ","Ninguno","Ninguno","Ninguno",2,4,8,"MEDIO",60,480,"II","ACEPTABLE O CON CONTROL ESPECIFICO",1,"Generación de enfermedades laborales resultados de acumulación de estrés.","Resolución 2646 de 2008","N.A","N.A","Actividades de Bienestar\nPlanificaciòn de procesos (Actividades)\nEvaluaciòn desempeño de personal","Aplicación de batería del riesgo psicosocial según resolución 2646 de 2008, Conformación de comité de convivencia laboral, realización de capacitaciones y actividades recreativas relacionadas con el manejo de estrés.","N.A"]
[{"$nulls":5},"Ergonómico","Posturas o trabajo estático","Realización de actividades administrativas en posición sedente.",null,"Dolores de espalda o fatiga muscular","Ninguno","Ninguno","Ninguno",2,3,6,"MEDIO",60,360,"II","ACEPTABLE O CON CONTROL ESPECIFICO",1,"Generación de enfermedades laborales por mala postura","Resolución 2400 de 1979","N.A","*Sustitución a sillas ergonómicas de acuerdo a fisionomía de empleado *Adecuación de puesto de trabajo de acuerdo al análisis de morbilidad sentida y análisis de puestos de trabajo","Programa Biomecanico","Realización de análisis de morbilidad sentida, Implementación de plan de vigilancia epidemiológica. Realización de pausas activas durante la jornada laboral, realización de capacitaciones en higiene postural","Elemento de oficina ergonomicos"]
[{"$nulls":5},"Locativo","Condiciones de seguridad infraestructura","Escaleras pasillos y oficinas",null,"Golpes o traumas por caídas al mismo o distinto nivel","Orden y aseo en áreas de transito oficinas y pasillos","Señalización y demarcación","Ninguno",2,4,8,"MEDIO",60,480,"II","ACEPTABLE O CON CONTROL ESPECIFICO",1,"Fracturas, golpes, Contusiones","Resolución 2400 de 1979, Ley 9 de 1979","N.A","N.A","N.A","Señalización zonas de peligro y circulación, realización de inspecciones periódicas por parte del Vigía de SST, socialización de estándares de riesgo locativo.","N.A"]
[{"$nulls":5},"Eléctrico","Condiciones de seguridad instalaciones electicas","Equipos o maquinas eléctricas a 110 voltios",null,"Shock eléctrico","Instalaciones eléctricas aisladas","Extintores multipropósito","Ninguno",2,4,8,"MEDIO",60,{"$f":"P21*R21","v":480},{"$f":"IF(S21=\"\",\"\",IF(S21<=20,\"IV\",IF(S21<=120,\"III\",IF(S21<=500,\"II\",\"I\"))))","v":"II"},"ACEPTABLE O CON CONTROL ESPECIFICO",1,"Shock por descargas eléctricas","Reglamento técnico de instalaciones eléctricas RETIE","N.A","N.A","Programas de Mantenimiento Preventivo\nInspecciones de Infraestructura","Inspecciones periódicas por parte del Vigía de SST, Mantenimiento preventivo a instalaciones eléctricas y equipos eléctricos, Capacitación a trabajadores en la prevención de riesgo eléctrico.","Utilizaciòn guantes dielèctricos, botas de seguridad dielectricas (Aplica para personal de electricidad)."]
[{"$nulls":5},"Naturales","Erupciones, Terremotos ","Falla geológica, volcanes cercanos geográficamente",null,"Golpes, contusiones, incendios, desplome de estructura etc.","Ninguno","Extintores multipropósito","Ninguno",2,4,8,"MEDIO",60,480,"II","ACEPTABLE O CON CONTROL ESPECIFICO",1,"Golpes, contusiones muerte.","Decreto 1072 de 2015","N.A","N.A","*Implementación del plan de emergencia y contingencias * Realización de simulacro.","Adquisición de botiquín, y camilla, Conformación de brigadas de emergencia, Capacitación a brigadistas en primeros auxilios, atención de incendios y evacuación, ","Adquisición de elementos de protección personal idóneos para brigadistas."]
[{"$nulls":5},"Fisico","Condiciones de seguridad instalaciones electicas","Iluminacion inadecuada ",null,"Fatiga Visual","Ninguno","Iluminación","Ninguno",2,4,8,"MEDIO",25,200,"II","ACEPTABLE O CON CONTROL ESPECIFICO",1,"Dismicución Capacidad Laboral","NO","N.A","N.A","Adecuacion de luminarias de mayor lumen ","Mantenimiento Preventivo de luminarias.","N.A"]
[{"$nulls":5},"Riesgo Publico","Origen Social","Delincuencia común, manifestantes etc.",null,"Robos, daños a la propiedad, lesiones golpes contusiones","Ninguno","Ninguno","Ninguno",2,3,6,"MEDIO",60,360,"II","ACEPTABLE O CON CONTROL ESPECIFICO",1,"Golpes, contusiones muerte, daño a estructura.","Ley 9 de 1979","N.A","Tener enlace con policia ","N.A","Implementación de estándares de seguridad para la prevención de riesgo publico, integración de la Policía Nacional con los procedimientos internos de emergencia","N.A"]
[null,"OPERATIVO","* Area Surtidores                                                                                                                                                                                                                                                                                                                                           *Area de descargue","* Descargue de combustible desde camión cisterna.\n* Operación de surtidores.\n","SI","Biológico","Bacterias, hongos, virus.","Recepción de pagos en efectivo (billetes, monedas)",null,"Infecciones, alergias, contagio de enfermedades a causa de virus o bacterias","Ninguno","Ninguno","Ninguno",2,2,{"$f":"N25*O25","v":4},{"$f":"IF(P25=\"\",\"\",IF(P25<=4,\"BAJO\",IF(P25<=8,\"MEDIO\",IF(P25<=20,\"ALTO\",\"MUY ALTO\"))))","v":"BAJO"},25,{"$f":"P25*R25","v":100},{"$f":"IF(S25=\"\",\"\",IF(S25<=20,\"IV\",IF(S25<=120,\"III\",IF(S25<=500,\"II\",\"I\"))))","v":"III"},{"$f":"IF(S25=\"\",\"\",IF(S25<=20,\"ACEPTABLE\",IF(S25<=120,\"MEJORABLE\",IF(S25<=500,\"ACEPTABLE O CON CONTROL ESPECIFICO\",\"NO ACEPTABLE\"))))","v":"MEJORABLE"},2,"Contagio de enfermedades graves o mortales transmitidas por virosis ","Resolución 2400 de 1979, Ley 9 de 1979","N.A","N.A","N.A","Implementación de estándares de bioseguridad para la prevención de enfermedades infectocontagiosas","Uso de tapabocas, y guantes de látex y jabón antibacterial para la realización de la tarea "]
[{"$nulls":5},"Físico","Ruido","Vehículos de carga (tracto mulas, camiones, etc.)",null,"Problemas auditivos, fatiga mental, cefaleas.","Ninguno","Ninguno","Ninguno",2,4,{"$f":"N26*O26","v":8},{"$f":"IF(P26=\"\",\"\",IF(P26<=4,\"BAJO\",IF(P26<=8,\"MEDIO\",IF(P26<=20,\"ALTO\",\"MUY ALTO\"))))","v":"MEDIO"},10,{"$f":"P26*R26","v":80},{"$f":"IF(S26=\"\",\"\",IF(S26<=20,\"IV\",IF(S26<=120,\"III\",IF(S26<=500,\"II\",\"I\"))))","v":"III"},{"$f":"IF(S26=\"\",\"\",IF(S26<=20,\"ACEPTABLE\",IF(S26<=120,\"MEJORABLE\",IF(S26<=500,\"ACEPTABLE O CON CONTROL ESPECIFICO\",\"NO ACEPTABLE\"))))","v":"MEJORABLE"},2,"Generación de Enfermedad laborar hipoacusias","Resolución 2400 de 1979, Ley 9 de 1979","N.A","N.A","N.A","Implementación de estándares de seguridad para ingreso de vehículos, Instalación de señalización que indique apagar el motor y el no uso de la bocina durante el cargue de combustible.","N.A"]
[{"$nulls":5},"Químicos","Humos","Emisión de CO2 por tracto camiones",null,"Afecciones respiratorias.","Ninguno","Ninguno","Ninguno",6,4,{"$f":"N27*O27","v":24},{"$f":"IF(P27=\"\",\"\",IF(P27<=4,\"BAJO\",IF(P27<=8,\"MEDIO\",IF(P27<=20,\"ALTO\",\"MUY ALTO\"))))","v":"MUY ALTO"},100,{"$f":"P27*R27","v":2400},{"$f":"IF(S27=\"\",\"\",IF(S27<=20,\"IV\",IF(S27<=120,\"III\",IF(S27<=500,\"II\",\"I\"))))","v":"I"},{"$f":"IF(S27=\"\",\"\",IF(S27<=20,\"ACEPTABLE\",IF(S27<=120,\"MEJORABLE\",IF(S27<=500,\"ACEPTABLE O CON CONTROL ESPECIFICO\",\"NO ACEPTABLE\"))))","v":"NO ACEPTABLE"},2,"Afecciones respiratorias, enfermedad laboral","Resolución 2400 de 1979, Ley 9 de 1979","N.A","Programas de Mantenimiento Preventivo\nInspecciones de Infraestructura","N.A","Implementación de estándares de seguridad para ingreso de vehículos, Instalación de señalización que indique apagar el motor durante el cargue de combustible.","Uso de tapabocas"]
[{"$nulls":5},"Químicos","Combustibles, lubricantes y aditivos para vehículos","Gasaes y Vapores  (contacto directo con gas - gasolina - aceites)",null,"quemaduras de grado I,II,III.  Intoxicacion, Dermatitis, afectaciones en la piel.","Ninguno","Ninguno","Ninguno",2,3,{"$f":"N28*O28","v":6},{"$f":"IF(P28=\"\",\"\",IF(P28<=4,\"BAJO\",IF(P28<=8,\"MEDIO\",IF(P28<=20,\"ALTO\",\"MUY ALTO\"))))","v":"MEDIO"},60,{"$f":"P28*R28","v":360},{"$f":"IF(S28=\"\",\"\",IF(S28<=20,\"IV\",IF(S28<=120,\"III\",IF(S28<=500,\"II\",\"I\"))))","v":"II"},{"$f":"IF(S28=\"\",\"\",IF(S28<=20,\"ACEPTABLE\",IF(S28<=120,\"MEJORABLE\",IF(S28<=500,\"ACEPTABLE O CON CONTROL ESPECIFICO\",\"NO ACEPTABLE\"))))","v":"ACEPTABLE O CON CONTROL ESPECIFICO"},2,"Daños a cutáneos irreversibles.","Resolución 2400 de 1979, Ley 9 de 1079","N.A","N.A","N.A","Realización de inspecciones periódicas a estantes de almacenamiento.","N.A"]
[{"$nulls":5},"Psicosocial","Gestión organizacional. Condiciones de la tarea.","Ausencia de programas de inducción, Ausencia de manual de funciones. Trabajos con ritmo de trabajo intenso o monótono.",null,"Problemas cardiovasculares, Estrés, cefaleas, gastritis etc. ","Ninguno","Ninguno","Ninguno",2,4,{"$f":"N29*O29","v":8},{"$f":"IF(P29=\"\",\"\",IF(P29<=4,\"BAJO\",IF(P29<=8,\"MEDIO\",IF(P29<=20,\"ALTO\",\"MUY ALTO\"))))","v":"MEDIO"},60,{"$f":"P29*R29","v":480},{"$f":"IF(S29=\"\",\"\",IF(S29<=20,\"IV\",IF(S29<=120,\"III\",IF(S29<=500,\"II\",\"I\"))))","v":"II"},{"$f":"IF(S29=\"\",\"\",IF(S29<=20,\"ACEPTABLE\",IF(S29<=120,\"MEJORABLE\",IF(S29<=500,\"ACEPTABLE O CON CONTROL ESPECIFICO\",\"NO ACEPTABLE\"))))","v":"ACEPTABLE O CON CONTROL ESPECIFICO"},2,"Generación de enfermedades laborales resultados de acumulación de estrés.","Resolución 2646 de 2008","N.A","N.A","Actividades de Bienestar\nPlanificaciòn de procesos (Actividades)\nEvaluaciòn desempeño de personal","Aplicación de batería del riesgo psicosocial según resolución 2646 de 2008, Conformación de comité de convivencia laboral, realización de capacitaciones y actividades recreativas relacionadas con el manejo de estrés.","N.A"]
[{"$nulls":5},"Ergonómico","Posturas o trabajo estático","Existe trabajo prolongado de pie",null,"Fatiga muscular de miembros inferiores","Ninguno","Ninguno","Ninguno",6,3,{"$f":"N30*O30","v":18},{"$f":"IF(P30=\"\",\"\",IF(P30<=4,\"BAJO\",IF(P30<=8,\"MEDIO\",IF(P30<=20,\"ALTO\",\"MUY ALTO\"))))","v":"ALTO"},60,{"$f":"P30*R30","v":1080},{"$f":"IF(S30=\"\",\"\",IF(S30<=20,\"IV\",IF(S30<=120,\"III\",IF(S30<=500,\"II\",\"I\"))))","v":"I"},{"$f":"IF(S30=\"\",\"\",IF(S30<=20,\"ACEPTABLE\",IF(S30<=120,\"MEJORABLE\",IF(S30<=500,\"ACEPTABLE O CON CONTROL ESPECIFICO\",\"NO ACEPTABLE\"))))","v":"NO ACEPTABLE"},2,"Generación de enfermedad laboral por afecciones musculares","Ley 9 de 1979 Resolución 2400 de 1979","N.A","N.A","Programa Biomecanico","Implementación de programa de vigilancia epidemiológica según análisis de morbilidad sentida, y diagnostico de condiciones de salud. Realización de capacitaciones en higiene postural.","N.A"]
[{"$nulls":5},"Eléctrico","Condiciones de seguridad instalaciones electicas","Equipos o maquinas eléctricas a 110 voltios",null,"Shock eléctrico","Instalaciones eléctricas aisladas","Extintores multipropósito","Ninguno",2,4,{"$f":"N31*O31","v":8},{"$f":"IF(P31=\"\",\"\",IF(P31<=4,\"BAJO\",IF(P31<=8,\"MEDIO\",IF(P31<=20,\"ALTO\",\"MUY ALTO\"))))","v":"MEDIO"},60,{"$f":"P31*R31","v":480},{"$f":"IF(S31=\"\",\"\",IF(S31<=20,\"IV\",IF(S31<=120,\"III\",IF(S31<=500,\"II\",\"I\"))))","v":"II"},{"$f":"IF(S31=\"\",\"\",IF(S31<=20,\"ACEPTABLE\",IF(S31<=120,\"MEJORABLE\",IF(S31<=500,\"ACEPTABLE O CON CONTROL ESPECIFICO\",\"NO ACEPTABLE\"))))","v":"ACEPTABLE O CON CONTROL ESPECIFICO"},2,"Shock por descargas eléctricas","Reglamento técnico de instalaciones eléctricas RETIE","N.A","N.A","Programas de Mantenimiento Preventivo\nInspecciones de Infraestructura","Inspecciones periódicas por parte del Vigía de SST, Mantenimiento preventivo a instalaciones eléctricas y equipos eléctricos, Capacitación a trabajadores en la prevención de riesgo eléctrico.","Utilizaciòn guantes dielèctricos, botas de seguridad dielectricas (Aplica para personal de electricidad)."]
[{"$nulls":5},"Transito y transporte","Transporte terrestre","Transito de vehículos  en área de maniobras",null,"Choques, atropellamientos","Ninguno","Señalización y demarcación","Ninguno",2,4,8,"MEDIO",60,{"$f":"P32*R32","v":480},"II","ACEPTABLE O CON CONTROL ESPECIFICO",2,"Golpes, contusiones muerte.","Ley 769 de 2002","N.A","N.A","N.A","Señalización zona de transito vehicular, condiciones de ingreso y limites de velocidad, demarcación de ruta peatonal durante la maniobra de vehículos.","N.A"]
[{"$nulls":5},"Fisico","Condiciones de seguridad instalaciones electicas","Iluminación inadecuada ",null,"Fatiga Visual","Ninguno","Iluminacion","Ninguno",0,2,0,"BAJO",25,200,"II","ACEPTABLE O CON CONTROL ESPECIFICO",2,"Dismicución Capacidad Laboral","NO","N.A","N.A","Adecuacion de luminarias de mayor lumen ","Mantenimiento Preventivo de luminarias.","N.A"]
[{"$nulls":5},"Riesgo Publico","Origen Social","Delincuencia común, manifestantes etc.",null,"Robos, daños a la propiedad, lesiones golpes contusiones","Ninguno","Ninguno","Ninguno",2,3,6,"MEDIO",60,{"$f":"P34*R34","v":360},"II","ACEPTABLE O CON CONTROL ESPECIFICO",2,"Golpes, contusiones muerte, daño a estructura.","Ley 9 de 1979","N.A","Tener enlace con policia ","N.A","Implementación de estándares de seguridad para la prevención de riesgo publico, integración de la Policía Nacional con los procedimientos internos de emergencia","N.A"]
[{"$nulls":5},"Químicos","Combustibles para vehículos","Derrame de combustibles",null,"quemaduras de grado I,II,III.  Intoxicacion, Dermatitis, afectaciones en la piel.","Ninguno","Ninguno","Ninguno",6,4,{"$f":"N35*O35","v":24},{"$f":"IF(P35=\"\",\"\",IF(P35<=4,\"BAJO\",IF(P35<=8,\"MEDIO\",IF(P35<=20,\"ALTO\",\"MUY ALTO\"))))","v":"MUY ALTO"},100,{"$f":"P35*R35","v":2400},{"$f":"IF(S35=\"\",\"\",IF(S35<=20,\"IV\",IF(S35<=120,\"III\",IF(S35<=500,\"II\",\"I\"))))","v":"I"},{"$f":"IF(S35=\"\",\"\",IF(S35<=20,\"ACEPTABLE\",IF(S35<=120,\"MEJORABLE\",IF(S35<=500,\"ACEPTABLE O CON CONTROL ESPECIFICO\",\"NO ACEPTABLE\"))))","v":"NO ACEPTABLE"},2,"Daños a cutáneos irreversibles.","Resolución 2400 de 1979, Ley 9 de 1079","N.A","N.A","N.A","Realización de inspecciones periódicas a estantes de almacenamiento.","N.A"]
[{"$nulls":5},"Locativo","Condiciones de seguridad infraestructura","Escaleras pasillos y oficinas, asenso a parte superior de vehículos cisterna con altura superiores a 1.50 mts",null,"Golpes o traumas por caídas al mismo o distinto nivel","Orden y aseo en áreas de transito oficinas y pasillos","Señalización y demarcación","Ninguno",2,2,{"$f":"N36*O36","v":4},{"$f":"IF(P36=\"\",\"\",IF(P36<=4,\"BAJO\",IF(P36<=8,\"MEDIO\",IF(P36<=20,\"ALTO\",\"MUY ALTO\"))))","v":"BAJO"},60,240,"II","ACEPTABLE O CON CONTROL ESPECIFICO",2,"Muerte por caída a distinto nivel","Resolución 2400 de 1079 Resolución 1409 de 2012","N.A","N.A","Inspección puntos de anclaje de anclaje en vehículos cisterna.","Implementación de procedimiento para la realización de trabajos en alturas, Certificación de competencias a trabajadores en AVANZADO TRABAJO SEGURO EN ALTURAS por el SENA o una entidad aprobada.\nInspección puntos de anclaje de anclaje en vehículos cisterna.","Adquisición de equipo de protección para trabajo en alturas según requisitos de resolución 1409 de 2012"]
[{"$nulls":5},"Saneamiento","Manejo residuos","Manejo inadecuado de residuos",null,"Proliferación de vectores, y plagas","Recipientes para la recolección temporal de residuos","Designación de lugar para el almacenamiento temporal y disposición final de residuos ","Ninguno",2,2,4,"BAJO",10,40,"III","MEJORABLE",2,"Proliferación de vectores y plagas","Resolución 2400 de 1979, Ley 9 de 1979","N.A","N.A","N.A","Adecuación de zona para el almacenamiento temporal de residuos, Capacitación en separación y clasificación de residuos, señalización, inspección, limpieza y mantenimiento a lugares de recolección.","N.A"]
[{"$nulls":5},"Naturales","Erupciones, Terremotos ","Falla geológica, volcanes cercanos geográficamente",null,"Golpes, contusiones, incendios, desplome de estructura etc.","Ninguno","Extintores multipropósito","Ninguno",2,4,8,"MEDIO",60,480,"II",{"$f":"IF(S38=\"\",\"\",IF(S38<=20,\"ACEPTABLE\",IF(S38<=120,\"MEJORABLE\",IF(S38<=500,\"ACEPTABLE O CON CONTROL ESPECIFICO\",\"NO ACEPTABLE\"))))","v":"ACEPTABLE O CON CONTROL ESPECIFICO"},2,"Golpes, contusiones muerte.","Decreto 1072 de 2015","N.A","N.A","N.A","Implementación del plan de emergencia y contingencia, adquisición de botiquín, y camilla, Conformación de brigadas de emergencia, Capacitación a brigadistas en primeros auxilios, atención de incendios y evacuación, realización de simulacro.","Adquisición de elementos de protección personal idóneos para brigadistas."]
[null,null,"ALMACEN","* Almacenamiento de lubricantes y aditivos                                                                                                                                                                                                                                                                                                                                                                             * Venta de lubricantes y aditivos",null,"Químicos","Lubricantes y aditivos para vehículos","Derrame de aceites y lubricantes ",null,"Alergias, Afecciones o reacciones cutáneas.","Ninguno","Ninguno","Ninguno",2,3,{"$f":"N39*O39","v":6},{"$f":"IF(P39=\"\",\"\",IF(P39<=4,\"BAJO\",IF(P39<=8,\"MEDIO\",IF(P39<=20,\"ALTO\",\"MUY ALTO\"))))","v":"MEDIO"},25,{"$f":"P39*R39","v":150},{"$f":"IF(S39=\"\",\"\",IF(S39<=20,\"IV\",IF(S39<=120,\"III\",IF(S39<=500,\"II\",\"I\"))))","v":"II"},{"$f":"IF(S39=\"\",\"\",IF(S39<=20,\"ACEPTABLE\",IF(S39<=120,\"MEJORABLE\",IF(S39<=500,\"ACEPTABLE O CON CONTROL ESPECIFICO\",\"NO ACEPTABLE\"))))","v":"ACEPTABLE O CON CONTROL ESPECIFICO"},2,"Daños a cutáneos irreversibles.","Resolución 2400 de 1979, Ley 9 de 1079","N.A","N.A","N.A","Realización de inspecciones periódicas a estantes de almacenamiento.","N.A"]
[{"$nulls":5},"Psicosocial","Gestión organizacional. Condiciones de la tarea.","Ritmo de trabajo intenso o monótono. Estrés laboral",null,"Problemas cardiovasculares, Estrés, cefaleas, gastritis etc. ","Ninguno","Ninguno","Ninguno",2,4,{"$f":"N40*O40","v":8},{"$f":"IF(P40=\"\",\"\",IF(P40<=4,\"BAJO\",IF(P40<=8,\"MEDIO\",IF(P40<=20,\"ALTO\",\"MUY ALTO\"))))","v":"MEDIO"},60,{"$f":"P40*R40","v":480},{"$f":"IF(S40=\"\",\"\",IF(S40<=20,\"IV\",IF(S40<=120,\"III\",IF(S40<=500,\"II\",\"I\"))))","v":"II"},{"$f":"IF(S40=\"\",\"\",IF(S40<=20,\"ACEPTABLE\",IF(S40<=120,\"MEJORABLE\",IF(S40<=500,\"ACEPTABLE O CON CONTROL ESPECIFICO\",\"NO ACEPTABLE\"))))","v":"ACEPTABLE O CON CONTROL ESPECIFICO"},2,"Generación de enfermedades laborales resultados de acumulación de estrés.","Resolución 2646 de 2008","N.A","N.A","Actividades de Bienestar\nPlanificaciòn de procesos (Actividades)\nEvaluaciòn desempeño de personal","Aplicación de batería del riesgo psicosocial según resolución 2646 de 2008, Conformación de comité de convivencia laboral, realización de capacitaciones y actividades recreativas relacionadas con el manejo de estrés.","N.A"]
[{"$nulls":5},"Locativo","Condiciones de seguridad infraestructura","Escaleras pasillos y oficinas",null,"Golpes o traumas por caídas al mismo o distinto nivel","Orden y aseo en áreas de transito oficinas y pasillos","Señalización y demarcación","Ninguno",2,4,{"$f":"N41*O41","v":8},{"$f":"IF(P41=\"\",\"\",IF(P41<=4,\"BAJO\",IF(P41<=8,\"MEDIO\",IF(P41<=20,\"ALTO\",\"MUY ALTO\"))))","v":"MEDIO"},60,{"$f":"P41*R41","v":480},{"$f":"IF(S41=\"\",\"\",IF(S41<=20,\"IV\",IF(S41<=120,\"III\",IF(S41<=500,\"II\",\"I\"))))","v":"II"},{"$f":"IF(S41=\"\",\"\",IF(S41<=20,\"ACEPTABLE\",IF(S41<=120,\"MEJORABLE\",IF(S41<=500,\"ACEPTABLE O CON CONTROL ESPECIFICO\",\"NO ACEPTABLE\"))))","v":"ACEPTABLE O CON CONTROL ESPECIFICO"},2,"Fracturas, golpes, Contusiones","Resolución 2400 de 1979, Ley 9 de 1979","N.A","N.A","N.A","Señalización zonas de peligro y circulación, realización de inspecciones periódicas por parte del Vigía de SST, socialización de estándares de riesgo locativo.","N.A"]
[{"$nulls":5},"Naturales","Erupciones, Terremotos ","Falla geológica, volcanes cercanos geográficamente",null,"Golpes, contusiones, incendios, desplome de estructura etc.","Ninguno","Extintores multipropósito","Ninguno",2,4,{"$f":"N42*O42","v":8},{"$f":"IF(P42=\"\",\"\",IF(P42<=4,\"BAJO\",IF(P42<=8,\"MEDIO\",IF(P42<=20,\"ALTO\",\"MUY ALTO\"))))","v":"MEDIO"},60,{"$f":"P42*R42","v":480},{"$f":"IF(S42=\"\",\"\",IF(S42<=20,\"IV\",IF(S42<=120,\"III\",IF(S42<=500,\"II\",\"I\"))))","v":"II"},{"$f":"IF(S42=\"\",\"\",IF(S42<=20,\"ACEPTABLE\",IF(S42<=120,\"MEJORABLE\",IF(S42<=500,\"ACEPTABLE O CON CONTROL ESPECIFICO\",\"NO ACEPTABLE\"))))","v":"ACEPTABLE O CON CONTROL ESPECIFICO"},2,"Golpes, contusiones muerte.","Decreto 1072 de 2015","N.A","N.A","N.A","Implementación del plan de emergencia y contingencias, adquisición de botiquín, y camilla, Conformación de brigadas de emergencia, Capacitación a brigadistas en primeros auxilios, atención de incendios y evacuación, realización de simulacro.","Adquisición de elementos de protección personal idóneos para brigadistas."]
[{"$nulls":5},"Riesgo Publico","Origen Social","Delincuencia común, manifestantes etc.",null,"Robos, daños a la propiedad, lesiones golpes contusiones","Ninguno","Ninguno","Ninguno",2,3,{"$f":"N43*O43","v":6},{"$f":"IF(P43=\"\",\"\",IF(P43<=4,\"BAJO\",IF(P43<=8,\"MEDIO\",IF(P43<=20,\"ALTO\",\"MUY ALTO\"))))","v":"MEDIO"},60,{"$f":"P43*R43","v":360},{"$f":"IF(S43=\"\",\"\",IF(S43<=20,\"IV\",IF(S43<=120,\"III\",IF(S43<=500,\"II\",\"I\"))))","v":"II"},{"$f":"IF(S43=\"\",\"\",IF(S43<=20,\"ACEPTABLE\",IF(S43<=120,\"MEJORABLE\",IF(S43<=500,\"ACEPTABLE O CON CONTROL ESPECIFICO\",\"NO ACEPTABLE\"))))","v":"ACEPTABLE O CON CONTROL ESPECIFICO"},2,"Golpes, contusiones muerte, daño a estructura.","Ley 9 de 1979","N.A","Tener enlace con policia ","N.A","Implementación de estándares de seguridad para la prevención de riesgo publico, integración de la Policía Nacional con los procedimientos internos de emergencia","N.A"]
[{"$nulls":5},"Ergonómico","Posturas o trabajo estático","Existe trabajo prolongado de pie",null,"Fatiga muscular de miembros inferiores","Ninguno","Ninguno","Ninguno",6,3,{"$f":"N44*O44","v":18},{"$f":"IF(P44=\"\",\"\",IF(P44<=4,\"BAJO\",IF(P44<=8,\"MEDIO\",IF(P44<=20,\"ALTO\",\"MUY ALTO\"))))","v":"ALTO"},60,{"$f":"P44*R44","v":1080},{"$f":"IF(S44=\"\",\"\",IF(S44<=20,\"IV\",IF(S44<=120,\"III\",IF(S44<=500,\"II\",\"I\"))))","v":"I"},{"$f":"IF(S44=\"\",\"\",IF(S44<=20,\"ACEPTABLE\",IF(S44<=120,\"MEJORABLE\",IF(S44<=500,\"ACEPTABLE O CON CONTROL ESPECIFICO\",\"NO ACEPTABLE\"))))","v":"NO ACEPTABLE"},2,"Generación de enfermedad laboral por afecciones musculares","Ley 9 de 1979 Resolución 2400 de 1979","N.A","N.A","Programa Biomecanico","Implementación de programa de vigilancia epidemiológica según análisis de morbilidad sentida, y diagnostico de condiciones de salud. Realización de capacitaciones en higiene postural.","N.A"]
[{"$nulls":5},"Saneamiento","Manejo residuos","Manejo inadecuado de residuos",null,"Proliferación de vectores, y plagas","Recipientes para la recolección temporal de residuos","Designación de lugar para el almacenamiento temporal y disposición final de residuos ","Ninguno",2,2,4,"BAJO",10,40,"III","MEJORABLE",2,"Proliferación de vectores y plagas","Resolución 2400 de 1979, Ley 9 de 1979","N.A","N.A","N.A","Adecuación de zona para el almacenamiento temporal de residuos, Capacitación en separación y clasificación de residuos, señalización, inspección, limpieza y mantenimiento a lugares de recolección.","N.A"]
[{"$nulls":5},"Biológico","Bacterias, hongos, virus.","Recepción de pagos en efectivo (billetes, monedas)",null,"Infecciones, alergias, contagio de enfermedades a causa de virus o bacterias","Ninguno","Ninguno","Ninguno",2,2,{"$f":"N46*O46","v":4},{"$f":"IF(P46=\"\",\"\",IF(P46<=4,\"BAJO\",IF(P46<=8,\"MEDIO\",IF(P46<=20,\"ALTO\",\"MUY ALTO\"))))","v":"BAJO"},25,{"$f":"P46*R46","v":100},{"$f":"IF(S46=\"\",\"\",IF(S46<=20,\"IV\",IF(S46<=120,\"III\",IF(S46<=500,\"II\",\"I\"))))","v":"III"},{"$f":"IF(S46=\"\",\"\",IF(S46<=20,\"ACEPTABLE\",IF(S46<=120,\"MEJORABLE\",IF(S46<=500,\"ACEPTABLE O CON CONTROL ESPECIFICO\",\"NO ACEPTABLE\"))))","v":"MEJORABLE"},2,"Contagio de enfermedades graves o mortales transmitidas por virosis ","Resolución 2400 de 1979, Ley 9 de 1979","N.A","N.A","N.A","Implementación de estándares de bioseguridad para la prevención de enfermedades infectocontagiosas","Uso de tapabocas, y guantes de látex y jabón antibacterial para la realización de la tarea "]
[{"$nulls":5},"Físico","Ruido","Vehículos de carga (tracto mulas, camiones, etc.)",null,"Problemas auditivos, fatiga mental, cefaleas.","Ninguno","Ninguno","Ninguno",2,4,{"$f":"N47*O47","v":8},{"$f":"IF(P47=\"\",\"\",IF(P47<=4,\"BAJO\",IF(P47<=8,\"MEDIO\",IF(P47<=20,\"ALTO\",\"MUY ALTO\"))))","v":"MEDIO"},10,{"$f":"P47*R47","v":80},{"$f":"IF(S47=\"\",\"\",IF(S47<=20,\"IV\",IF(S47<=120,\"III\",IF(S47<=500,\"II\",\"I\"))))","v":"III"},{"$f":"IF(S47=\"\",\"\",IF(S47<=20,\"ACEPTABLE\",IF(S47<=120,\"MEJORABLE\",IF(S47<=500,\"ACEPTABLE O CON CONTROL ESPECIFICO\",\"NO ACEPTABLE\"))))","v":"MEJORABLE"},2,"Generación de Enfermedad laborar hipoacusias","Resolución 2400 de 1979, Ley 9 de 1979","N.A","N.A","N.A","Implementación de estándares de seguridad para ingreso de vehículos, Instalación de señalización que indique apagar el motor y el no uso de la bocina durante el cargue de combustible.","N.A"]
[null,"Firma Representante legal",null," \n\n\n            ____________________________\n           CC: ",{"$nulls":3},"Firma Encargado de SG-SST"," \n\n\n            ____________________________\n           CC: ",{"$nulls":3},"\nFirma de elaboración",null,null," \n\n\n            ____________________________\n           CC: "]

{"sheet":"Priorizacion riesgos","index":1,"n_rows":47,"n_cols":13,"rows_kept":47,"merged":[[1,9,1,12]]}
[]
[{"$nulls":9},"ACCIONES"]
[null,"NIVEL DE RIESGO","ACEPTABILIDAD DE RIESGO","AREA/LUGAR","CLASIFICACION DE RIESGO","FACTOR DE RIESGO","PELIGRO","PERSONAS AFECTADAS","NR","Eliminación","Sustitución","Controles de ingeniería","Controles administrativos, Señalización y advertencias"]
[null,{"$f":"Matriz!T15","v":"III"},{"$f":"Matriz!U15","v":"MEJORABLE"},{"$f":"Matriz!C15","v":"Area Administrativa"},{"$f":"Matriz!F15","v":"Biológico"},{"$f":"Matriz!G15","v":"Bacterias, hongos, virus."},{"$f":"Matriz!H15","v":"Recepción de pagos en efectivo (billetes, monedas)"},{"$f":"Matriz!V15","v":1},{"$f":"Matriz!S15","v":100},{"$f":"Matriz!Y15","v":"N.A"},{"$f":"Matriz!Z15","v":"N.A"},{"$f":"Matriz!AA15","v":"Actividades de Orden y Aseo\nJornadas de Fumigacion"},{"$f":"Matriz!AB15","v":"Implementación de estándares de bioseguridad para la prevención de enfermedades infectocontagiosas"}]
[null,{"$f":"Matriz!T16","v":"III"},{"$f":"Matriz!U16","v":"MEJORABLE"},{"$f":"Matriz!C16","v":0},{"$f":"Matriz!F16","v":"Fisico"},{"$f":"Matriz!G16","v":"Deterioro de la visión"},{"$f":"Matriz!H16","v":"RADIACIONES NO IONIZANTES (Por iluminacion artificial, panllas de los computadores, ondas radiactivas)"},{"$f":"Matriz!V16","v":1},{"$f":"Matriz!S16","v":100},{"$f":"Matriz!Y16","v":"Reubicación puesto de trabajo"},{"$f":"Matriz!Z16","v":"Abrir licitación para el mantenimiento de los computadores"},{"$f":"Matriz!AA16","v":"se recomienda realizar mantenimientos periodicos a los equipos de computo"},{"$f":"Matriz!AB16","v":"N.A"}]
[null,{"$f":"Matriz!T17","v":"III"},{"$f":"Matriz!U17","v":"MEJORABLE"},{"$f":"Matriz!C17","v":0},{"$f":"Matriz!F17","v":"Físico"},{"$f":"Matriz!G17","v":"Ruido"},{"$f":"Matriz!H17","v":"Vehículos de carga (tracto mulas, camiones, etc.)"},{"$f":"Matriz!V17","v":1},{"$f":"Matriz!S17","v":40},{"$f":"Matriz!Y17","v":"N.A"},{"$f":"Matriz!Z17","v":"N.A"},{"$f":"Matriz!AA17","v":"N.A"},{"$f":"Matriz!AB17","v":"Implementación de estándares de seguridad para ingreso de vehículos, Instalación de señalización que indique apagar el motor y el no uso de la bocina durante el cargue de combustible."}]
[null,{"$f":"Matriz!T18","v":"II"},{"$f":"Matriz!U18","v":"ACEPTABLE O CON CONTROL ESPECIFICO"},{"$f":"Matriz!C18","v":0},{"$f":"Matriz!F18","v":"Psicosocial"},{"$f":"Matriz!G18","v":"Gestión organizacional. Condiciones de la tarea."},{"$f":"Matriz!H18","v":"Ausencia de programas de inducción, Ausencia de manual de funciones. Trabajos con ritmo de trabajo intenso o monótono."},{"$f":"Matriz!V18","v":1},{"$f":"Matriz!S18","v":480},{"$f":"Matriz!Y18","v":"N.A"},{"$f":"Matriz!Z18","v":"N.A"},{"$f":"Matriz!AA18","v":"Actividades de Bienestar\nPlanificaciòn de procesos (Actividades)\nEvaluaciòn desempeño de personal"},{"$f":"Matriz!AB18","v":"Aplicación de batería del riesgo psicosocial según resolución 2646 de 2008, Conformación de comité de convivencia laboral, realización de capacitaciones y actividades recreativas relacionadas con el manejo de estrés."}]
[null,{"$f":"Matriz!T19","v":"II"},{"$f":"Matriz!U19","v":"ACEPTABLE O CON CONTROL ESPECIFICO"},{"$f":"Matriz!C19","v":0},{"$f":"Matriz!F19","v":"Ergonómico"},{"$f":"Matriz!G19","v":"Posturas o trabajo estático"},{"$f":"Matriz!H19","v":"Realización de actividades administrativas en posición sedente."},{"$f":"Matriz!V19","v":1},{"$f":"Matriz!S19","v":360},{"$f":"Matriz!Y19","v":"N.A"},{"$f":"Matriz!Z19","v":"*Sustitución a sillas ergonómicas de acuerdo a fisionomía de empleado *Adecuación de puesto de trabajo de acuerdo al análisis de morbilidad sentida y análisis de puestos de trabajo"},{"$f":"Matriz!AA19","v":"Programa Biomecanico"},{"$f":"Matriz!AB19","v":"Realización de análisis de morbilidad sentida, Implementación de plan de vigilancia epidemiológica. Realización de pausas activas durante la jornada laboral, realización de capacitaciones en higiene postural"}]
[null,{"$f":"Matriz!T20","v":"II"},{"$f":"Matriz!U20","v":"ACEPTABLE O CON CONTROL ESPECIFICO"},{"$f":"Matriz!C20","v":0},{"$f":"Matriz!F20","v":"Locativo"},{"$f":"Matriz!G20","v":"Condiciones de seguridad infraestructura"},{"$f":"Matriz!H20","v":"Escaleras pasillos y oficinas"},{"$f":"Matriz!V20","v":1},{"$f":"Matriz!S20","v":480},{"$f":"Matriz!Y20","v":"N.A"},{"$f":"Matriz!Z20","v":"N.A"},{"$f":"Matriz!AA20","v":"N.A"},{"$f":"Matriz!AB20","v":"Señalización zonas de peligro y circulación, realización de inspecciones periódicas por parte del Vigía de SST, socialización de estándares de riesgo locativo."}]
[null,{"$f":"Matriz!T21","v":"II"},{"$f":"Matriz!U21","v":"ACEPTABLE O CON CONTROL ESPECIFICO"},{"$f":"Matriz!C21","v":0},{"$f":"Matriz!F21","v":"Eléctrico"},{"$f":"Matriz!G21","v":"Condiciones de seguridad instalaciones electicas"},{"$f":"Matriz!H21","v":"Equipos o maquinas eléctricas a 110 voltios"},{"$f":"Matriz!V21","v":1},{"$f":"Matriz!S21","v":480},{"$f":"Matriz!Y21","v":"N.A"},{"$f":"Matriz!Z21","v":"N.A"},{"$f":"Matriz!AA21","v":"Programas de Mantenimiento Preventivo\nInspecciones de Infraestructura"},{"$f":"Matriz!AB21","v":"Inspecciones periódicas por parte del Vigía de SST, Mantenimiento preventivo a instalaciones eléctricas y equipos eléctricos, Capacitación a trabajadores en la prevención de riesgo eléctrico."}]
[null,{"$f":"Matriz!T22","v":"II"},{"$f":"Matriz!U22","v":"ACEPTABLE O CON CONTROL ESPECIFICO"},{"$f":"Matriz!C22","v":0},{"$f":"Matriz!F22","v":"Naturales"},{"$f":"Matriz!G22","v":"Erupciones, Terremotos "},{"$f":"Matriz!H22","v":"Falla geológica, volcanes cercanos geográficamente"},{"$f":"Matriz!V22","v":1},{"$f":"Matriz!S22","v":480},{"$f":"Matriz!Y22","v":"N.A"},{"$f":"Matriz!Z22","v":"N.A"},{"$f":"Matriz!AA22","v":"*Implementación del plan de emergencia y contingencias * Realización de simulacro."},{"$f":"Matriz!AB22","v":"Adquisición de botiquín, y camilla, Conformación de brigadas de emergencia, Capacitación a brigadistas en primeros auxilios, atención de incendios y evacuación, "}]
[null,{"$f":"Matriz!T23","v":"II"},{"$f":"Matriz!U23","v":"ACEPTABLE O CON CONTROL ESPECIFICO"},{"$f":"Matriz!C23","v":0},{"$f":"Matriz!F23","v":"Fisico"},{"$f":"Matriz!G23","v":"Condiciones de seguridad instalaciones electicas"},{"$f":"Matriz!H23","v":"Iluminacion inadecuada "},{"$f":"Matriz!V23","v":1},{"$f":"Matriz!S23","v":200},{"$f":"Matriz!Y23","v":"N.A"},{"$f":"Matriz!Z23","v":"N.A"},{"$f":"Matriz!AA23","v":"Adecuacion de luminarias de mayor lumen "},{"$f":"Matriz!AB23","v":"Mantenimiento Preventivo de luminarias."}]
[null,{"$f":"Matriz!T24","v":"II"},{"$f":"Matriz!U24","v":"ACEPTABLE O CON CONTROL ESPECIFICO"},{"$f":"Matriz!C24","v":0},{"$f":"Matriz!F24","v":"Riesgo Publico"},{"$f":"Matriz!G24","v":"Origen Social"},{"$f":"Matriz!H24","v":"Delincuencia común, manifestantes etc."},{"$f":"Matriz!V24","v":1},{"$f":"Matriz!S24","v":360},{"$f":"Matriz!Y24","v":"N.A"},{"$f":"Matriz!Z24","v":"Tener enlace con policia "},{"$f":"Matriz!AA24","v":"N.A"},{"$f":"Matriz!AB24","v":"Implementación de estándares de seguridad para la prevención de riesgo publico, integración de la Policía Nacional con los procedimientos internos de emergencia"}]
[null,{"$f":"Matriz!T25","v":"III"},{"$f":"Matriz!U25","v":"MEJORABLE"},{"$f":"Matriz!C25","v":"* Area Surtidores                                                                                                                                                                                                                                                                                                                                           *Area de descargue"},{"$f":"Matriz!F25","v":"Biológico"},{"$f":"Matriz!G25","v":"Bacterias, hongos, virus."},{"$f":"Matriz!H25","v":"Recepción de pagos en efectivo (billetes, monedas)"},{"$f":"Matriz!V25","v":2},{"$f":"Matriz!S25","v":100},{"$f":"Matriz!Y25","v":"N.A"},{"$f":"Matriz!Z25","v":"N.A"},{"$f":"Matriz!AA25","v":"N.A"},{"$f":"Matriz!AB25","v":"Implementación de estándares de bioseguridad para la prevención de enfermedades infectocontagiosas"}]
[null,{"$f":"Matriz!T26","v":"III"},{"$f":"Matriz!U26","v":"MEJORABLE"},{"$f":"Matriz!C26","v":0},{"$f":"Matriz!F26","v":"Físico"},{"$f":"Matriz!G26","v":"Ruido"},{"$f":"Matriz!H26","v":"Vehículos de carga (tracto mulas, camiones, etc.)"},{"$f":"Matriz!V26","v":2},{"$f":"Matriz!S26","v":80},{"$f":"Matriz!Y26","v":"N.A"},{"$f":"Matriz!Z26","v":"N.A"},{"$f":"Matriz!AA26","v":"N.A"},{"$f":"Matriz!AB26","v":"Implementación de estándares de seguridad para ingreso de vehículos, Instalación de señalización que indique apagar el motor y el no uso de la bocina durante el cargue de combustible."}]
[null,{"$f":"Matriz!T27","v":"I"},{"$f":"Matriz!U27","v":"NO ACEPTABLE"},{"$f":"Matriz!C27","v":0},{"$f":"Matriz!F27","v":"Químicos"},{"$f":"Matriz!G27","v":"Humos"},{"$f":"Matriz!H27","v":"Emisión de CO2 por tracto camiones"},{"$f":"Matriz!V27","v":2},{"$f":"Matriz!S27","v":2400},{"$f":"Matriz!Y27","v":"N.A"},{"$f":"Matriz!Z27","v":"Programas de Mantenimiento Preventivo\nInspecciones de Infraestructura"},{"$f":"Matriz!AA27","v":"N.A"},{"$f":"Matriz!AB27","v":"Implementación de estándares de seguridad para ingreso de vehículos, Instalación de señalización que indique apagar el motor durante el cargue de combustible."}]
[null,{"$f":"Matriz!T28","v":"II"},{"$f":"Matriz!U28","v":"ACEPTABLE O CON CONTROL ESPECIFICO"},{"$f":"Matriz!C28","v":0},{"$f":"Matriz!F28","v":"Químicos"},{"$f":"Matriz!G28","v":"Combustibles, lubricantes y aditivos para vehículos"},{"$f":"Matriz!H28","v":"Gasaes y Vapores  (contacto directo con gas - gasolina - aceites)"},{"$f":"Matriz!V28","v":2},{"$f":"Matriz!S28","v":360},{"$f":"Matriz!Y28","v":"N.A"},{"$f":"Matriz!Z28","v":"N.A"},{"$f":"Matriz!AA28","v":"N.A"},{"$f":"Matriz!AB28","v":"Realización de inspecciones periódicas a estantes de almacenamiento."}]
[null,{"$f":"Matriz!T29","v":"II"},{"$f":"Matriz!U29","v":"ACEPTABLE O CON CONTROL ESPECIFICO"},{"$f":"Matriz!C29","v":0},{"$f":"Matriz!F29","v":"Psicosocial"},{"$f":"Matriz!G29","v":"Gestión organizacional. Condiciones de la tarea."},{"$f":"Matriz!H29","v":"Ausencia de programas de inducción, Ausencia de manual de funciones. Trabajos con ritmo de trabajo intenso o monótono."},{"$f":"Matriz!V29","v":2},{"$f":"Matriz!S29","v":480},{"$f":"Matriz!Y29","v":"N.A"},{"$f":"Matriz!Z29","v":"N.A"},{"$f":"Matriz!AA29","v":"Actividades de Bienestar\nPlanificaciòn de procesos (Actividades)\nEvaluaciòn desempeño de personal"},{"$f":"Matriz!AB29","v":"Aplicación de batería del riesgo psicosocial según resolución 2646 de 2008, Conformación de comité de convivencia laboral, realización de capacitaciones y actividades recreativas relacionadas con el manejo de estrés."}]
[null,{"$f":"Matriz!T30","v":"I"},{"$f":"Matriz!U30","v":"NO ACEPTABLE"},{"$f":"Matriz!C30","v":0},{"$f":"Matriz!F30","v":"Ergonómico"},{"$f":"Matriz!G30","v":"Posturas o trabajo estático"},{"$f":"Matriz!H30","v":"Existe trabajo prolongado de pie"},{"$f":"Matriz!V30","v":2},{"$f":"Matriz!S30","v":1080},{"$f":"Matriz!Y30","v":"N.A"},{"$f":"Matriz!Z30","v":"N.A"},{"$f":"Matriz!AA30","v":"Programa Biomecanico"},{"$f":"Matriz!AB30","v":"Implementación de programa de vigilancia epidemiológica según análisis de morbilidad sentida, y diagnostico de condiciones de salud. Realización de capacitaciones en higiene postural."}]
[null,{"$f":"Matriz!T31","v":"II"},{"$f":"Matriz!U31","v":"ACEPTABLE O CON CONTROL ESPECIFICO"},{"$f":"Matriz!C31","v":0},{"$f":"Matriz!F31","v":"Eléctrico"},{"$f":"Matriz!G31","v":"Condiciones de seguridad instalaciones electicas"},{"$f":"Matriz!H31","v":"Equipos o maquinas eléctricas a 110 voltios"},{"$f":"Matriz!V31","v":2},{"$f":"Matriz!S31","v":480},{"$f":"Matriz!Y31","v":"N.A"},{"$f":"Matriz!Z31","v":"N.A"},{"$f":"Matriz!AA31","v":"Programas de Mantenimiento Preventivo\nInspecciones de Infraestructura"},{"$f":"Matriz!AB31","v":"Inspecciones periódicas por parte del Vigía de SST, Mantenimiento preventivo a instalaciones eléctricas y equipos eléctricos, Capacitación a trabajadores en la prevención de riesgo eléctrico."}]
[null,{"$f":"Matriz!T32","v":"II"},{"$f":"Matriz!U32","v":"ACEPTABLE O CON CONTROL ESPECIFICO"},{"$f":"Matriz!C32","v":0},{"$f":"Matriz!F32","v":"Transito y transporte"},{"$f":"Matriz!G32","v":"Transporte terrestre"},{"$f":"Matriz!H32","v":"Transito de vehículos  en área de maniobras"},{"$f":"Matriz!V32","v":2},{"$f":"Matriz!S32","v":480},{"$f":"Matriz!Y32","v":"N.A"},{"$f":"Matriz!Z32","v":"N.A"},{"$f":"Matriz!AA32","v":"N.A"},{"$f":"Matriz!AB32","v":"Señalización zona de transito vehicular, condiciones de ingreso y limites de velocidad, demarcación de ruta peatonal durante la maniobra de vehículos."}]
[null,{"$f":"Matriz!T33","v":"II"},{"$f":"Matriz!U33","v":"ACEPTABLE O CON CONTROL ESPECIFICO"},{"$f":"Matriz!C33","v":0},{"$f":"Matriz!F33","v":"Fisico"},{"$f":"Matriz!G33","v":"Condiciones de seguridad instalaciones electicas"},{"$f":"Matriz!H33","v":"Iluminación inadecuada "},{"$f":"Matriz!V33","v":2},{"$f":"Matriz!S33","v":200},{"$f":"Matriz!Y33","v":"N.A"},{"$f":"Matriz!Z33","v":"N.A"},{"$f":"Matriz!AA33","v":"Adecuacion de luminarias de mayor lumen "},{"$f":"Matriz!AB33","v":"Mantenimiento Preventivo de luminarias."}]
[null,{"$f":"Matriz!T34","v":"II"},{"$f":"Matriz!U34","v":"ACEPTABLE O CON CONTROL ESPECIFICO"},{"$f":"Matriz!C34","v":0},{"$f":"Matriz!F34","v":"Riesgo Publico"},{"$f":"Matriz!G34","v":"Origen Social"},{"$f":"Matriz!H34","v":"Delincuencia común, manifestantes etc."},{"$f":"Matriz!V34","v":2},{"$f":"Matriz!S34","v":360},{"$f":"Matriz!Y34","v":"N.A"},{"$f":"Matriz!Z34","v":"Tener enlace con policia "},{"$f":"Matriz!AA34","v":"N.A"},{"$f":"Matriz!AB34","v":"Implementación de estándares de seguridad para la prevención de riesgo publico, integración de la Policía Nacional con los procedimientos internos de emergencia"}]
[null,{"$f":"Matriz!T35","v":"I"},{"$f":"Matriz!U35","v":"NO ACEPTABLE"},{"$f":"Matriz!C35","v":0},{"$f":"Matriz!F35","v":"Químicos"},{"$f":"Matriz!G35","v":"Combustibles para vehículos"},{"$f":"Matriz!H35","v":"Derrame de combustibles"},{"$f":"Matriz!V35","v":2},{"$f":"Matriz!S35","v":2400},{"$f":"Matriz!Y35","v":"N.A"},{"$f":"Matriz!Z35","v":"N.A"},{"$f":"Matriz!AA35","v":"N.A"},{"$f":"Matriz!AB35","v":"Realización de inspecciones periódicas a estantes de almacenamiento."}]
[null,{"$f":"Matriz!T36","v":"II"},{"$f":"Matriz!U36","v":"ACEPTABLE O CON CONTROL ESPECIFICO"},{"$f":"Matriz!C36","v":0},{"$f":"Matriz!F36","v":"Locativo"},{"$f":"Matriz!G36","v":"Condiciones de seguridad infraestructura"},{"$f":"Matriz!H36","v":"Escaleras pasillos y oficinas, asenso a parte superior de vehículos cisterna con altura superiores a 1.50 mts"},{"$f":"Matriz!V36","v":2},{"$f":"Matriz!S36","v":240},{"$f":"Matriz!Y36","v":"N.A"},{"$f":"Matriz!Z36","v":"N.A"},{"$f":"Matriz!AA36","v":"Inspección puntos de anclaje de anclaje en vehículos cisterna."},{"$f":"Matriz!AB36","v":"Implementación de procedimiento para la realización de trabajos en alturas, Certificación de competencias a trabajadores en AVANZADO TRABAJO SEGURO EN ALTURAS por el SENA o una entidad aprobada.\nInspección puntos de anclaje de anclaje en vehículos cisterna."}]
[null,{"$f":"Matriz!T37","v":"III"},{"$f":"Matriz!U37","v":"MEJORABLE"},{"$f":"Matriz!C37","v":0},{"$f":"Matriz!F37","v":"Saneamiento"},{"$f":"Matriz!G37","v":"Manejo residuos"},{"$f":"Matriz!H37","v":"Manejo inadecuado de residuos"},{"$f":"Matriz!V37","v":2},{"$f":"Matriz!S37","v":40},{"$f":"Matriz!Y37","v":"N.A"},{"$f":"Matriz!Z37","v":"N.A"},{"$f":"Matriz!AA37","v":"N.A"},{"$f":"Matriz!AB37","v":"Adecuación de zona para el almacenamiento temporal de residuos, Capacitación en separación y clasificación de residuos, señalización, inspección, limpieza y mantenimiento a lugares de recolección."}]
[null,{"$f":"Matriz!T38","v":"II"},{"$f":"Matriz!U38","v":"ACEPTABLE O CON CONTROL ESPECIFICO"},{"$f":"Matriz!C38","v":0},{"$f":"Matriz!F38","v":"Naturales"},{"$f":"Matriz!G38","v":"Erupciones, Terremotos "},{"$f":"Matriz!H38","v":"Falla geológica, volcanes cercanos geográficamente"},{"$f":"Matriz!V38","v":2},{"$f":"Matriz!S38","v":480},{"$f":"Matriz!Y38","v":"N.A"},{"$f":"Matriz!Z38","v":"N.A"},{"$f":"Matriz!AA38","v":"N.A"},{"$f":"Matriz!AB38","v":"Implementación del plan de emergencia y contingencia, adquisición de botiquín, y camilla, Conformación de brigadas de emergencia, Capacitación a brigadistas en primeros auxilios, atención de incendios y evacuación, realización de simulacro."}]
[null,{"$f":"Matriz!T39","v":"II"},{"$f":"Matriz!U39","v":"ACEPTABLE O CON CONTROL ESPECIFICO"},{"$f":"Matriz!C39","v":"ALMACEN"},{"$f":"Matriz!F39","v":"Químicos"},{"$f":"Matriz!G39","v":"Lubricantes y aditivos para vehículos"},{"$f":"Matriz!H39","v":"Derrame de aceites y lubricantes "},{"$f":"Matriz!V39","v":2},{"$f":"Matriz!S39","v":150},{"$f":"Matriz!Y39","v":"N.A"},{"$f":"Matriz!Z39","v":"N.A"},{"$f":"Matriz!AA39","v":"N.A"},{"$f":"Matriz!AB39","v":"Realización de inspecciones periódicas a estantes de almacenamiento."}]
[null,{"$f":"Matriz!T40","v":"II"},{"$f":"Matriz!U40","v":"ACEPTABLE O CON CONTROL ESPECIFICO"},{"$f":"Matriz!C40","v":0},{"$f":"Matriz!F40","v":"Psicosocial"},{"$f":"Matriz!G40","v":"Gestión organizacional. Condiciones de la tarea."},{"$f":"Matriz!H40","v":"Ritmo de trabajo intenso o monótono. Estrés laboral"},{"$f":"Matriz!V40","v":2},{"$f":"Matriz!S40","v":480},{"$f":"Matriz!Y40","v":"N.A"},{"$f":"Matriz!Z40","v":"N.A"},{"$f":"Matriz!AA40","v":"Actividades de Bienestar\nPlanificaciòn de procesos (Actividades)\nEvaluaciòn desempeño de personal"},{"$f":"Matriz!AB40","v":"Aplicación de batería del riesgo psicosocial según resolución 2646 de 2008, Conformación de comité de convivencia laboral, realización de capacitaciones y actividades recreativas relacionadas con el manejo de estrés."}]
[null,{"$f":"Matriz!T41","v":"II"},{"$f":"Matriz!U41","v":"ACEPTABLE O CON CONTROL ESPECIFICO"},{"$f":"Matriz!C41","v":0},{"$f":"Matriz!F41","v":"Locativo"},{"$f":"Matriz!G41","v":"Condiciones de seguridad infraestructura"},{"$f":"Matriz!H41","v":"Escaleras pasillos y oficinas"},{"$f":"Matriz!V41","v":2},{"$f":"Matriz!S41","v":480},{"$f":"Matriz!Y41","v":"N.A"},{"$f":"Matriz!Z41","v":"N.A"},{"$f":"Matriz!AA41","v":"N.A"},{"$f":"Matriz!AB41","v":"Señalización zonas de peligro y circulación, realización de inspecciones periódicas por parte del Vigía de SST, socialización de estándares de riesgo locativo."}]
[null,{"$f":"Matriz!T42","v":"II"},{"$f":"Matriz!U42","v":"ACEPTABLE O CON CONTROL ESPECIFICO"},{"$f":"Matriz!C42","v":0},{"$f":"Matriz!F42","v":"Naturales"},{"$f":"Matriz!G42","v":"Erupciones, Terremotos "},{"$f":"Matriz!H42","v":"Falla geológica, volcanes cercanos geográficamente"},{"$f":"Matriz!V42","v":2},{"$f":"Matriz!S42","v":480},{"$f":"Matriz!Y42","v":"N.A"},{"$f":"Matriz!Z42","v":"N.A"},{"$f":"Matriz!AA42","v":"N.A"},{"$f":"Matriz!AB42","v":"Implementación del plan de emergencia y contingencias, adquisición de botiquín, y camilla, Conformación de brigadas de emergencia, Capacitación a brigadistas en primeros auxilios, atención de incendios y evacuación, realización de simulacro."}]
[null,{"$f":"Matriz!T43","v":"II"},{"$f":"Matriz!U43","v":"ACEPTABLE O CON CONTROL ESPECIFICO"},{"$f":"Matriz!C43","v":0},{"$f":"Matriz!F43","v":"Riesgo Publico"},{"$f":"Matriz!G43","v":"Origen Social"},{"$f":"Matriz!H43","v":"Delincuencia común, manifestantes etc."},{"$f":"Matriz!V43","v":2},{"$f":"Matriz!S43","v":360},{"$f":"Matriz!Y43","v":"N.A"},{"$f":"Matriz!Z43","v":"Tener enlace con policia "},{"$f":"Matriz!AA43","v":"N.A"},{"$f":"Matriz!AB43","v":"Implementación de estándares de seguridad para la prevención de riesgo publico, integración de la Policía Nacional con los procedimientos internos de emergencia"}]
[null,{"$f":"Matriz!T44","v":"I"},{"$f":"Matriz!U44","v":"NO ACEPTABLE"},{"$f":"Matriz!C44","v":0},{"$f":"Matriz!F44","v":"Ergonómico"},{"$f":"Matriz!G44","v":"Posturas o trabajo estático"},{"$f":"Matriz!H44","v":"Existe trabajo prolongado de pie"},{"$f":"Matriz!V44","v":2},{"$f":"Matriz!S44","v":1080},{"$f":"Matriz!Y44","v":"N.A"},{"$f":"Matriz!Z44","v":"N.A"},{"$f":"Matriz!AA44","v":"Programa Biomecanico"},{"$f":"Matriz!AB44","v":"Implementación de programa de vigilancia epidemiológica según análisis de morbilidad sentida, y diagnostico de condiciones de salud. Realización de capacitaciones en higiene postural."}]
[null,{"$f":"Matriz!T45","v":"III"},{"$f":"Matriz!U45","v":"MEJORABLE"},{"$f":"Matriz!C45","v":0},{"$f":"Matriz!F45","v":"Saneamiento"},{"$f":"Matriz!G45","v":"Manejo residuos"},{"$f":"Matriz!H45","v":"Manejo inadecuado de residuos"},{"$f":"Matriz!V45","v":2},{"$f":"Matriz!S45","v":40},{"$f":"Matriz!Y45","v":"N.A"},{"$f":"Matriz!Z45","v":"N.A"},{"$f":"Matriz!AA45","v":"N.A"},{"$f":"Matriz!AB45","v":"Adecuación de zona para el almacenamiento temporal de residuos, Capacitación en separación y clasificación de residuos, señalización, inspección, limpieza y mantenimiento a lugares de recolección."}]
[null,{"$f":"Matriz!T46","v":"III"},{"$f":"Matriz!U46","v":"MEJORABLE"},{"$f":"Matriz!C46","v":0},{"$f":"Matriz!F46","v":"Biológico"},{"$f":"Matriz!G46","v":"Bacterias, hongos, virus."},{"$f":"Matriz!H46","v":"Recepción de pagos en efectivo (billetes, monedas)"},{"$f":"Matriz!V46","v":2},{"$f":"Matriz!S46","v":100},{"$f":"Matriz!Y46","v":"N.A"},{"$f":"Matriz!Z46","v":"N.A"},{"$f":"Matriz!AA46","v":"N.A"},{"$f":"Matriz!AB46","v":"Implementación de estándares de bioseguridad para la prevención de enfermedades infectocontagiosas"}]
[null,{"$f":"Matriz!T47","v":"III"},{"$f":"Matriz!U47","v":"MEJORABLE"},{"$f":"Matriz!C47","v":0},{"$f":"Matriz!F47","v":"Físico"},{"$f":"Matriz!G47","v":"Ruido"},{"$f":"Matriz!H47","v":"Vehículos de carga (tracto mulas, camiones, etc.)"},{"$f":"Matriz!V47","v":2},{"$f":"Matriz!S47","v":80},{"$f":"Matriz!Y47","v":"N.A"},{"$f":"Matriz!Z47","v":"N.A"},{"$f":"Matriz!AA47","v":"N.A"},{"$f":"Matriz!AB47","v":"Implementación de estándares de seguridad para ingreso de vehículos, Instalación de señalización que indique apagar el motor y el no uso de la bocina durante el cargue de combustible."}]
[null,{"$f":"Matriz!#REF!","v":{"$error":"#REF!"}},{"$f":"Matriz!#REF!","v":{"$error":"#REF!"}},{"$f":"Matriz!#REF!","v":{"$error":"#REF!"}},{"$f":"Matriz!#REF!","v":{"$error":"#REF!"}},{"$f":"Matriz!#REF!","v":{"$error":"#REF!"}},{"$f":"Matriz!#REF!","v":{"$error":"#REF!"}},{"$f":"Matriz!#REF!","v":{"$error":"#REF!"}},{"$f":"Matriz!#REF!","v":{"$error":"#REF!"}},{"$f":"Matriz!#REF!","v":{"$error":"#REF!"}},{"$f":"Matriz!#REF!","v":{"$error":"#REF!"}},{"$f":"Matriz!#REF!","v":{"$error":"#REF!"}},{"$f":"Matriz!#REF!","v":{"$error":"#REF!"}}]
[null,{"$f":"Matriz!#REF!","v":{"$error":"#REF!"}},{"$f":"Matriz!#REF!","v":{"$error":"#REF!"}},{"$f":"Matriz!#REF!","v":{"$error":"#REF!"}},{"$f":"Matriz!#REF!","v":{"$error":"#REF!"}},{"$f":"Matriz!#REF!","v":{"$error":"#REF!"}},{"$f":"Matriz!#REF!","v":{"$error":"#REF!"}},{"$f":"Matriz!#REF!","v":{"$error":"#REF!"}},{"$f":"Matriz!#REF!","v":{"$error":"#REF!"}},{"$f":"Matriz!#REF!","v":{"$error":"#REF!"}},{"$f":"Matriz!#REF!","v":{"$error":"#REF!"}},{"$f":"Matriz!#REF!","v":{"$error":"#REF!"}},{"$f":"Matriz!#REF!","v":{"$error":"#REF!"}}]
[null,{"$f":"Matriz!#REF!","v":{"$error":"#REF!"}},{"$f":"Matriz!#REF!","v":{"$error":"#REF!"}},{"$f":"Matriz!#REF!","v":{"$error":"#REF!"}},{"$f":"Matriz!#REF!","v":{"$error":"#REF!"}},{"$f":"Matriz!#REF!","v":{"$error":"#REF!"}},{"$f":"Matriz!#REF!","v":{"$error":"#REF!"}},{"$f":"Matriz!#REF!","v":{"$error":"#REF!"}},{"$f":"Matriz!#REF!","v":{"$error":"#REF!"}},{"$f":"Matriz!#REF!","v":{"$error":"#REF!"}},{"$f":"Matriz!#REF!","v":{"$error":"#REF!"}},{"$f":"Matriz!#REF!","v":{"$error":"#REF!"}},{"$f":"Matriz!#REF!","v":{"$error":"#REF!"}}]
[null,{"$f":"Matriz!#REF!","v":{"$error":"#REF!"}},{"$f":"Matriz!#REF!","v":{"$error":"#REF!"}},{"$f":"Matriz!#REF!","v":{"$error":"#REF!"}},{"$f":"Matriz!#REF!","v":{"$error":"#REF!"}},{"$f":"Matriz!#REF!","v":{"$error":"#REF!"}},{"$f":"Matriz!#REF!","v":{"$error":"#REF!"}},{"$f":"Matriz!#REF!","v":{"$error":"#REF!"}},{"$f":"Matriz!#REF!","v":{"$error":"#REF!"}},{"$f":"Matriz!#REF!","v":{"$error":"#REF!"}},{"$f":"Matriz!#REF!","v":{"$error":"#REF!"}},{"$f":"Matriz!#REF!","v":{"$error":"#REF!"}},{"$f":"Matriz!#REF!","v":{"$error":"#REF!"}}]
[null,{"$f":"Matriz!#REF!","v":{"$error":"#REF!"}},{"$f":"Matriz!#REF!","v":{"$error":"#REF!"}},{"$f":"Matriz!#REF!","v":{"$error":"#REF!"}},{"$f":"Matriz!#REF!","v":{"$error":"#REF!"}},{"$f":"Matriz!#REF!","v":{"$error":"#REF!"}},{"$f":"Matriz!#REF!","v":{"$error":"#REF!"}},{"$f":"Matriz!#REF!","v":{"$error":"#REF!"}},{"$f":"Matriz!#REF!","v":{"$error":"#REF!"}},{"$f":"Matriz!#REF!","v":{"$error":"#REF!"}},{"$f":"Matriz!#REF!","v":{"$error":"#REF!"}},{"$f":"Matriz!#REF!","v":{"$error":"#REF!"}},{"$f":"Matriz!#REF!","v":{"$error":"#REF!"}}]
[null,{"$f":"Matriz!#REF!","v":{"$error":"#REF!"}},{"$f":"Matriz!#REF!","v":{"$error":"#REF!"}},{"$f":"Matriz!#REF!","v":{"$error":"#REF!"}},{"$f":"Matriz!#REF!","v":{"$error":"#REF!"}},{"$f":"Matriz!#REF!","v":{"$error":"#REF!"}},{"$f":"Matriz!#REF!","v":{"$error":"#REF!"}},{"$f":"Matriz!#REF!","v":{"$error":"#REF!"}},{"$f":"Matriz!#REF!","v":{"$error":"#REF!"}},{"$f":"Matriz!#REF!","v":{"$error":"#REF!"}},{"$f":"Matriz!#REF!","v":{"$error":"#REF!"}},{"$f":"Matriz!#REF!","v":{"$error":"#REF!"}},{"$f":"Matriz!#REF!","v":{"$error":"#REF!"}}]
[null,{"$f":"Matriz!#REF!","v":{"$error":"#REF!"}},{"$f":"Matriz!#REF!","v":{"$error":"#REF!"}},{"$f":"Matriz!#REF!","v":{"$error":"#REF!"}},{"$f":"Matriz!#REF!","v":{"$error":"#REF!"}},{"$f":"Matriz!#REF!","v":{"$error":"#REF!"}},{"$f":"Matriz!#REF!","v":{"$error":"#REF!"}},{"$f":"Matriz!#REF!","v":{"$error":"#REF!"}},{"$f":"Matriz!#REF!","v":{"$error":"#REF!"}},{"$f":"Matriz!#REF!","v":{"$error":"#REF!"}},{"$f":"Matriz!#REF!","v":{"$error":"#REF!"}},{"$f":"Matriz!#REF!","v":{"$error":"#REF!"}},{"$f":"Matriz!#REF!","v":{"$error":"#REF!"}}]
[null,{"$f":"Matriz!#REF!","v":{"$error":"#REF!"}},{"$f":"Matriz!#REF!","v":{"$error":"#REF!"}},{"$f":"Matriz!#REF!","v":{"$error":"#REF!"}},{"$f":"Matriz!#REF!","v":{"$error":"#REF!"}},{"$f":"Matriz!#REF!","v":{"$error":"#REF!"}},{"$f":"Matriz!#REF!","v":{"$error":"#REF!"}},{"$f":"Matriz!#REF!","v":{"$error":"#REF!"}},{"$f":"Matriz!#REF!","v":{"$error":"#REF!"}},{"$f":"Matriz!#REF!","v":{"$error":"#REF!"}},{"$f":"Matriz!#REF!","v":{"$error":"#REF!"}},{"$f":"Matriz!#REF!","v":{"$error":"#REF!"}},{"$f":"Matriz!#REF!","v":{"$error":"#REF!"}}]
[null,{"$f":"Matriz!#REF!","v":{"$error":"#REF!"}},{"$f":"Matriz!#REF!","v":{"$error":"#REF!"}},{"$f":"Matriz!#REF!","v":{"$error":"#REF!"}},{"$f":"Matriz!#REF!","v":{"$error":"#REF!"}},{"$f":"Matriz!#REF!","v":{"$error":"#REF!"}},{"$f":"Matriz!#REF!","v":{"$error":"#REF!"}},{"$f":"Matriz!#REF!","v":{"$error":"#REF!"}},{"$f":"Matriz!#REF!","v":{"$error":"#REF!"}},{"$f":"Matriz!#REF!","v":{"$error":"#REF!"}},{"$f":"Matriz!#REF!","v":{"$error":"#REF!"}},{"$f":"Matriz!#REF!","v":{"$error":"#REF!"}},{"$f":"Matriz!#REF!","v":{"$error":"#REF!"}}]
[null,{"$f":"Matriz!#REF!","v":{"$error":"#REF!"}},{"$f":"Matriz!#REF!","v":{"$error":"#REF!"}},{"$f":"Matriz!#REF!","v":{"$error":"#REF!"}},{"$f":"Matriz!#REF!","v":{"$error":"#REF!"}},{"$f":"Matriz!#REF!","v":{"$error":"#REF!"}},{"$f":"Matriz!#REF!","v":{"$error":"#REF!"}},{"$f":"Matriz!#REF!","v":{"$error":"#REF!"}},{"$f":"Matriz!#REF!","v":{"$error":"#REF!"}},{"$f":"Matriz!#REF!","v":{"$error":"#REF!"}},{"$f":"Matriz!#REF!","v":{"$error":"#REF!"}},{"$f":"Matriz!#REF!","v":{"$error":"#REF!"}},{"$f":"Matriz!#REF!","v":{"$error":"#REF!"}}]
[null,{"$f":"Matriz!#REF!","v":{"$error":"#REF!"}},{"$f":"Matriz!#REF!","v":{"$error":"#REF!"}},{"$f":"Matriz!#REF!","v":{"$error":"#REF!"}},{"$f":"Matriz!#REF!","v":{"$error":"#REF!"}},{"$f":"Matriz!#REF!","v":{"$error":"#REF!"}},{"$f":"Matriz!#REF!","v":{"$error":"#REF!"}},{"$f":"Matriz!#REF!","v":{"$error":"#REF!"}},{"$f":"Matriz!#REF!","v":{"$error":"#REF!"}},{"$f":"Matriz!#REF!","v":{"$error":"#REF!"}},{"$f":"Matriz!#REF!","v":{"$error":"#REF!"}},{"$f":"Matriz!#REF!","v":{"$error":"#REF!"}},{"$f":"Matriz!#REF!","v":{"$error":"#REF!"}}]

{"sheet":"Matriz Priorizada","index":2,"n_rows":26,"n_cols":13,"rows_kept":26,"merged":[[2,1,2,12],[3,9,3,12]]}
[]
[]
[null,"MATRIZ DE PRIORIZACION DE RIESGOS Y PELIGROS E. D. S. OCCIDENTE"]
[{"$nulls":9},"ACCIONES"]
[null,"NIVEL DE RIESGO","ACEPTABILIDAD DE RIESGO","AREA/LUGAR","CLASIFICACION DE RIESGO","FACTOR DE RIESGO","PELIGRO","PERSONAS AFECTADAS","NR","Eliminación","Sustitución","Controles de ingeniería","Controles administrativos, Señalización y advertencias"]
[1,"I","NO ACEPTABLE","* Area Surtidores                                                                                                                                                                                                                                                                                                                                           *Area de descargue","Químicos","Humos","Emisión de CO2 por tracto camiones",1,2400,"N.A","Programas de Mantenimiento Preventivo\nInspecciones de Infraestructura","N.A","Implementación de estándares de seguridad para ingreso de vehículos, Instalación de señalización que indique apagar el motor durante el cargue de combustible."]
[2,"I","NO ACEPTABLE","* Area Surtidores                                                                                                                                                                                                                                                                                                                                           *Area de descargue","Químicos","Combustibles para vehículos","Derrame de combustibles",1,2400,"N.A","N.A","N.A","Realización de inspecciones periódicas a estantes de almacenamiento."]
[3,"I","NO ACEPTABLE","* Area Surtidores                                                                                                                                                                                                                                                                                                                                           *Area de descargue   *ALMACEN                     * Area de cambio de lubricantes","Ergonómico","Posturas o trabajo estático","Existe trabajo prolongado de pie",2,1080,"N.A","N.A","Programa Biomecanico","Implementación de programa de vigilancia epidemiológica según análisis de morbilidad sentida, y diagnostico de condiciones de salud. Realización de capacitaciones en higiene postural."]
[7,"I","NO ACEPTABLE","Area de cambio de lubricantes","Químicos","Humos","Emisión de CO2 por tracto camiones",0,600,"N.A","N.A","N.A","Implementación de estándares de seguridad para ingreso de vehículos, Instalación de señalización que indique apagar el motor durante el cargue de combustible."]
[8,"II","ACEPTABLE O CON CONTROL ESPECIFICO","* Area Administrativa            * Area Surtidores          * Almacen                                                                                                                                                                                                                                                                                                                                 *Area de descargue                                             * Area de cambio de lubricantes","Psicosocial","Gestión organizacional. Condiciones de la tarea.","Ausencia de programas de inducción, Ausencia de manual de funciones. Trabajos con ritmo de trabajo intenso o monótono.",2,480,"N.A","N.A","Actividades de Bienestar\nPlanificaciòn de procesos (Actividades)\nEvaluaciòn desempeño de personal","Aplicación de batería del riesgo psicosocial según resolución 2646 de 2008, Conformación de comité de convivencia laboral, realización de capacitaciones y actividades recreativas relacionadas con el manejo de estrés."]
[9,"II","ACEPTABLE O CON CONTROL ESPECIFICO","* Area Administrativa                                        * Area de cambio de lubricantes                   * Almacen","Locativo","Condiciones de seguridad infraestructura","Escaleras pasillos y oficinas",2,480,"N.A","N.A","N.A","Señalización zonas de peligro y circulación, realización de inspecciones periódicas por parte del Vigía de SST, socialización de estándares de riesgo locativo."]
[11,"II","ACEPTABLE O CON CONTROL ESPECIFICO","* Area Administrativa            * Area Surtidores                   * Almacen                                                                                                                                                                                                                                                                                                                       *Area de descargue                                             * Area de cambio de lubricantes","Naturales","Erupciones, Terremotos ","Falla geológica, volcanes cercanos geográficamente",2,480,"N.A","N.A","*Implementación del plan de emergencia y contingencias * Realización de simulacro.","Adquisición de botiquín, y camilla, Conformación de brigadas de emergencia, Capacitación a brigadistas en primeros auxilios, atención de incendios y evacuación, "]
[13,"II","ACEPTABLE O CON CONTROL ESPECIFICO","* Area Administrativa            * Area Surtidores                   * Almacen                                                                                                                                                                                                                                                                                                                       *Area de descargue                                             * Area de cambio de lubricantes","Eléctrico","Condiciones de seguridad instalaciones electicas","Equipos o maquinas eléctricas a 110 voltios",2,480,"N.A","N.A","Programas de Mantenimiento Preventivo\nInspecciones de Infraestructura","Inspecciones periódicas por parte del Vigía de SST, Mantenimiento preventivo a instalaciones eléctricas y equipos eléctricos, Capacitación a trabajadores en la prevención de riesgo eléctrico."]
[14,"II","ACEPTABLE O CON CONTROL ESPECIFICO","* Area Surtidores        *  Area de cambio de lubricantes                                                                                                                                                                                                                                                                                                                                  *Area de descargue","Transito y transporte","Transporte terrestre","Transito de vehículos  en área de maniobras",1,480,"N.A","N.A","N.A","Señalización zona de transito vehicular, condiciones de ingreso y limites de velocidad, demarcación de ruta peatonal durante la maniobra de vehículos."]
[null,"II","ACEPTABLE O CON CONTROL ESPECIFICO","Area Administrativa","Ergonómico","Posturas o trabajo estático","Realización de actividades administrativas en posición sedente.",1,360,"N.A","*Sustitución a sillas ergonómicas de acuerdo a fisionomía de empleado *Adecuación de puesto de trabajo de acuerdo al análisis de morbilidad sentida y análisis de puestos de trabajo","Programa Biomecanico","Realización de análisis de morbilidad sentida, Implementación de plan de vigilancia epidemiológica. Realización de pausas activas durante la jornada laboral, realización de capacitaciones en higiene postural"]
[null,"II","ACEPTABLE O CON CONTROL ESPECIFICO","* Area Surtidores                                                                                                                                                                                                                                                                                                                                           *Area de descargue   *ALMACEN                     * Area de cambio de lubricantes","Riesgo Publico","Origen Social","Delincuencia común, manifestantes etc.",2,360,"N.A","Tener enlace con policia ","N.A","Implementación de estándares de seguridad para la prevención de riesgo publico, integración de la Policía Nacional con los procedimientos internos de emergencia"]
[null,"II","ACEPTABLE O CON CONTROL ESPECIFICO","* Area Surtidores                                                                                                                                                                                                                                                                                                                                           *Area de descargue","Químicos","Combustibles, lubricantes y aditivos para vehículos","Gasaes y Vapores  (contacto directo con gas - gasolina - aceites)",1,360,"N.A","N.A","N.A","Realización de inspecciones periódicas a estantes de almacenamiento."]
[null,"II","ACEPTABLE O CON CONTROL ESPECIFICO","Area de cambio de lubricantes","Locativo","Condiciones de seguridad infraestructura","Escaleras pasillos y oficinas, asenso a parte superior de vehículos cisterna con altura superiores a 1.50 mts",0,360,"N.A","N.A","Inspección puntos de anclaje de anclaje en vehículos cisterna.","Implementación de procedimiento para la realización de trabajos en alturas, Certificación de competencias a trabajadores en AVANZADO TRABAJO SEGURO EN ALTURAS por el SENA o una entidad aprobada.\nInspección puntos de anclaje de anclaje en vehículos cisterna."]
[null,"II","ACEPTABLE O CON CONTROL ESPECIFICO","* Area Surtidores                                                                                                                                                                                                                                                                                                                                           *Area de descargue","Locativo","Condiciones de seguridad infraestructura","Escaleras pasillos y oficinas, asenso a parte superior de vehículos cisterna con altura superiores a 1.50 mts",1,240,"N.A","N.A","Inspección puntos de anclaje de anclaje en vehículos cisterna.","Implementación de procedimiento para la realización de trabajos en alturas, Certificación de competencias a trabajadores en AVANZADO TRABAJO SEGURO EN ALTURAS por el SENA o una entidad aprobada.\nInspección puntos de anclaje de anclaje en vehículos cisterna."]
[null,"II","ACEPTABLE O CON CONTROL ESPECIFICO","* Area Administrativa                                    * Area Surtidores                                                                                                                                                                                                                                                                                                                                           *Area de descargue","Fisico","Condiciones de seguridad instalaciones electicas","Iluminacion inadecuada ",2,200,"N.A","N.A","Adecuacion de luminarias de mayor lumen ","Mantenimiento Preventivo de luminarias."]
[null,"II","ACEPTABLE O CON CONTROL ESPECIFICO","* ALMACEN                  * Area de cambio de lubricantes","Químicos","Lubricantes y aditivos para vehículos","Derrame de aceites y lubricantes ",2,150,"N.A","N.A","N.A","Realización de inspecciones periódicas a estantes de almacenamiento."]
[null,"III","MEJORABLE","* Area Surtidores                                                                                                                                                                                                                                                                                                                                           *Area de descargue   *ALMACEN                     * Area de cambio de lubricantes","Biológico","Bacterias, hongos, virus.","Recepción de pagos en efectivo (billetes, monedas)",2,100,"N.A","N.A","Actividades de Orden y Aseo\nJornadas de Fumigacion","Implementación de estándares de bioseguridad para la prevención de enfermedades infectocontagiosas"]
[null,"III","MEJORABLE","Area Administrativa","Fisico","Deterioro de la visión","RADIACIONES NO IONIZANTES (Por iluminacion artificial, panllas de los computadores, ondas radiactivas)",1,100,"Reubicación puesto de trabajo","Abrir licitación para el mantenimiento de los computadores","se recomienda realizar mantenimientos periodicos a los equipos de computo","N.A"]
[null,"III","MEJORABLE","* Area Surtidores                                                                                                                                                                                                                                                                                                                                           *Area de descargue   *ALMACEN                     * Area de cambio de lubricantes","Físico","Ruido","Vehículos de carga (tracto mulas, camiones, etc.)",1,80,"N.A","N.A","N.A","Implementación de estándares de seguridad para ingreso de vehículos, Instalación de señalización que indique apagar el motor y el no uso de la bocina durante el cargue de combustible."]
[null,"III","MEJORABLE","Area Administrativa","Físico","Ruido","Vehículos de carga (tracto mulas, camiones, etc.)",1,40,"N.A","N.A","N.A","Implementación de estándares de seguridad para ingreso de vehículos, Instalación de señalización que indique apagar el motor y el no uso de la bocina durante el cargue de combustible."]
[null,"III","MEJORABLE","* Area Surtidores                                                                                                                                                                                                                                                                                                                                           *Area de descargue   *ALMACEN                     * Area de cambio de lubricantes","Saneamiento","Manejo residuos","Manejo inadecuado de residuos",2,40,"N.A","N.A","N.A","Adecuación de zona para el almacenamiento temporal de residuos, Capacitación en separación y clasificación de residuos, señalización, inspección, limpieza y mantenimiento a lugares de recolección."]

{"sheet":"Clasificacion factores de riesg","index":3,"n_rows":131,"n_cols":4,"rows_kept":131,"merged":[[0,0,0,6],[1,3,1,6],[2,0,86,0],[2,1,13,1],[2,2,4,2],[2,3,2,6],[3,3,3,6],[4,3,4,6],[5,3,5,6],[6,2,7,2],[6,3,6,6],[7,3,7,6],[8,3,8,6],[9,2,10,2],[9,3,9,6],[10,3,10,6],[11,3,11,6],[11,10,28,10],[12,2,13,2],[12,3,12,6],[13,3,13,6],[14,1,33,1],[14,2,17,2],[14,3,14,6],[15,3,15,6],[16,3,16,6],[17,3,17,6],[18,2,21,2],[18,3,18,6],[19,3,19,6],[20,3,20,6],[21,3,21,6],[22,2,27,2],[22,3,22,6],[23,3,23,6],[24,3,24,6],[25,3,25,6],[26,3,26,6],[27,3,27,6],[28,2,32,2],[28,3,28,6],[29,3,29,6],[30,3,30,6],[31,3,31,6],[32,3,32,6],[33,3,33,6],[34,1,46,1],[34,2,38,2],[34,3,34,6],[35,3,35,6],[36,3,36,6],[37,3,37,6],[38,3,38,6],[39,2,42,2],[39,3,39,6],[40,3,40,6],[41,3,41,6],[42,3,42,6],[43,3,43,6],[44,2,46,2],[44,3,44,6],[45,3,45,6],[46,3,46,6],[47,1,67,1],[47,2,50,2],[47,3,47,6],[47,11,51,11],[48,3,48,6],[49,3,49,6],[50,3,50,6],[51,2,55,2],[51,3,51,6],[52,3,52,6],[53,3,53,6],[54,3,54,6],[55,3,55,6],[56,2,58,2],[56,3,56,6],[57,3,57,6],[58,3,58,6],[59,2,62,2],[59,3,59,6],[60,3,60,6],[63,2,67,2],[63,3,63,6],[64,3,64,6],[65,3,65,6],[66,3,66,6],[67,3,67,6],[68,1,86,1],[68,2,71,2],[68,3,68,6],[69,3,69,6],[70,3,70,6],[71,3,71,6],[72,2,75,2],[72,3,72,6],[73,3,73,6],[74,3,74,6],[75,3,75,6],[76,2,80,2],[76,3,76,6],[77,3,77,6],[78,3,78,6],[79,3,79,6],[80,3,80,6],[81,2,82,2],[81,3,81,6],[82,3,82,6],[83,2,86,2],[83,3,83,6],[85,3,85,6],[86,3,86,6],[87,0,130,0],[87,1,93,1],[87,2,93,2],[87,3,87,6],[88,3,88,6],[88,10,88,12],[89,3,89,6],[89,10,89,12],[90,3,90,6],[90,10,90,12],[91,3,91,6],[93,3,93,6],[94,1,99,1],[94,2,99,2],[94,3,94,6],[95,3,95,6],[96,3,96,6],[97,3,97,6],[98,3,98,6],[99,3,99,6],[100,1,108,1],[100,2,108,2],[101,3,101,6],[102,3,102,6],[103,3,103,6],[104,3,104,6],[105,3,105,6],[106,3,106,6],[107,3,107,6],[108,3,108,6],[109,1,115,1],[109,2,111,2],[109,3,109,6],[110,3,110,6],[111,3,111,6],[112,2,113,2],[112,3,112,6],[113,3,113,6],[114,2,115,2],[114,3,114,6],[115,3,115,6],[116,1,118,1],[116,3,116,6],[117,3,117,6],[118,3,118,6],[119,1,122,1],[119,2,122,2],[119,3,119,6],[120,3,120,6],[121,3,121,6],[122,3,122,6],[123,1,130,1],[123,2,130,2],[123,3,123,6],[124,3,124,6],[125,3,125,6],[126,3,126,6],[127,3,127,6],[128,3,128,6],[129,3,129,6],[130,3,130,6]]}
["TABLA GENERAL DE PELIGROS Y RIESGOS"]
["GRUPO","CLASE DE RIESGO ","FACTOR DE RIESGO","EJ: POSIBLES PELIGROS"]
["Higiénicos","BIOLOGICOS","Bacterias","Manipulación o realización de actividades con materiales, sustancias o fluidos contaminados"]
[{"$nulls":3},"Alimentos en mal estado"]
[{"$nulls":3},"Manipulación inadecuada de material inorgánico"]
[null,null,"virus","Contacto con virus por cercanía al lugar de trabajo"]
[null,null,"Parásitos","Paracitos por ingestión de alimentos de agua o alimentos contaminados"]
[{"$nulls":3},"Presencia de aguas estancadas"]
[null,null,"Insectos","Picaduras de insectos por cercanía al lugar de trabajo"]
[null,null,"Roedores","Presencia de ratas ratones en el lugar de trabajo"]
[{"$nulls":3},"Mordedura de roedores por cercanía al lugar de trabajo"]
[null,null,"Animales","Mordedura de animales domésticos"]
[null,null,"Hongos","Enmohecimiento de polvos vegetales o por condiciones termo higrométricas"]
[{"$nulls":3},"Presencia de hongos en lugares de trabajo"]
[null,"FISICO","Vibración","Exposición a vibraciones generados por herramientas"]
[{"$nulls":3},"Exposición a vibraciones generados por maquinas"]
[{"$nulls":3},"Exposición a vibraciones generados por equipos"]
[{"$nulls":3},"Exposición a vibraciones generados  por procesos de trabajo"]
[null,null,"Iluminaciones","Iluminación deficiente "]
[{"$nulls":3},"Presencia de brillos o destellos"]
[{"$nulls":3},"Iluminación natural obstruida"]
[{"$nulls":3},"Inadecuada ubicación de lámparas o bombillos"]
[null,null,"Temperatura humedad ventilación (condiciones termo higrométricas)","Exposición a calor extremo"]
[{"$nulls":3},"Exposición a frio extremo"]
[{"$nulls":3},"Humedad en los ambientes de trabajo"]
[{"$nulls":3},"Áreas de trabajo deficientemente ventiladas"]
[{"$nulls":3},"Exposición a cambios bruscos de temperatura"]
[{"$nulls":3},"Exposición a la intemperie"]
[null,null,"Ruido","Exposición a ruido generado por herramientas"]
[{"$nulls":3},"Exposición a ruido generado por maquinas"]
[{"$nulls":3},"Exposición a ruido generado por equipos "]
[{"$nulls":3},"Exposición al ruido generado por vecindad o externamente al ambiente de trabajo"]
[{"$nulls":3},"Exposición a ruido generado por procesos de trabajo"]
[null,null,"Radiaciones","Exposición a radiaciones no ionizantes ultra violeta (exposición solar)"]
[null,"QUIMICO","Polvos ","Exposición a polvo material particulado resultado del proceso de trabajo"]
[{"$nulls":3},"Exposición a polvo material particulado del ambiente"]
[{"$nulls":3},"Exposición a polvos inorgánicos suelos y cenizas"]
[{"$nulls":3},"Exposición a polvo resultado de procesos de trabajo"]
[{"$nulls":3},"Exposición a polvo domestico o de barrido"]
[null,null,"Gases","Exposición a gases resultado del proceso de trabajo"]
[{"$nulls":3},"Exposición restos de pintura, pegamentos, disolventes, pesticidas, aceites, etc."]
[{"$nulls":3},"Exposición a rocíos resultado del proceso de trabajo"]
[{"$nulls":3},"Exposición a químicos por vecindad"]
[null,null,"Humos","Humos resultado del proceso de trabajo"]
[null,null,"Líquidos","Ingesta del químico en estado liquido por malos hábitos de higiene"]
[{"$nulls":3},"Consumo de agua contaminada con químicos"]
[{"$nulls":3},"Exposición a manipulación de químicos en estado liquido"]
[null,"PSICOSOCIALES","Gestión organizacional","Ausencias de normas de seguridad"]
[{"$nulls":3},"Ausencia de manuales de funciones definidas"]
[{"$nulls":3},"Ausencia de programas e inducción"]
[{"$nulls":3},"No existen programas de entrenamiento"]
[null,null,"Condiciones de la tarea","Ritmo de trabajo intenso o monótono"]
[{"$nulls":3},"Carga mental "]
[{"$nulls":3},"Sobre carga de trabajo"]
[{"$nulls":3},"Trabajo de gran responsabilidad"]
[{"$nulls":3},"Trabajo bajo presión"]
[null,null,"Relaciones humanas","No existe trabajo en equipo"]
[{"$nulls":3},"Deficiente o poca comunicación "]
[{"$nulls":3},"Ambientes sociales agresivos "]
[null,null,"Características de la organización de trabajo","Deficiente comunicación organizacional"]
[{"$nulls":3},"Uso de nueva tecnología"]
[{"$nulls":3},"Demandas cualitativas y cuantitativas del la labor"]
[{"$nulls":3},"Mala organización y planificación del trabajo"]
[null,null,"Situaciones del ambiente laboral","Rotación de turnos"]
[{"$nulls":3},"Trabajo nocturno"]
[{"$nulls":3},"No se realizan descansos periódicos"]
[{"$nulls":3},"Jornadas extensas de trabajo (superior a 8 horas)"]
[{"$nulls":3},"Terrorismo delincuencia común"]
[null,"BIOMECANICO","Sobre   esfuerzos","Levantamiento transporte de cargas con exceso de peso"]
[{"$nulls":3},"No se realiza capacitación sobre manipulación y transporte de carga"]
[{"$nulls":3},"Exposición a fatigas por desplazamientos a largas distancias y frecuentes"]
[{"$nulls":3},"Movimientos de miembros superiores con aplicación de fuerza"]
[null,null,"Posturas o trabajo estático","Adopción obligada de posturas desfavorables "]
[{"$nulls":3},"Existe trabajo prolongado de pie"]
[{"$nulls":3},"Existe trabajo prolongado sedente"]
[{"$nulls":3},"El trabajo no permite cambiar de posición el 70% de la jornada"]
[null,null,"Movimientos o carga de trabajo dinámica","El trabajo exige continuamente flexionar el tronco"]
[{"$nulls":3},"El trabajo exige continuamente rotar el tronco"]
[{"$nulls":3},"Exigencia de mecánica corporal completa, variada y rápida"]
[{"$nulls":3},"No existen manuales de operación o procedimiento de trabajo para la manipulación y transporte de carga"]
[{"$nulls":3},"No existen ayudas mecánicas para el transporte levantamiento y almacenaje de carga"]
[null,null,"Manipulación ","Movimientos de las manos en trabajo repetitivo y continuo"]
[{"$nulls":3},"Trabajo repetitivo con aplicación de fuerza (miembros superiores)"]
[null,null,"Diseño del puesto de trabajo","Herramienta inadecuada para la realización del trabajo"]
[{"$nulls":3},"Equipo de trabajo inadecuado"]
[{"$nulls":3},"Sistemas de control y manejo inexistentes o deteriorados (botones, interruptores, palancas)"]
[{"$nulls":3},"Adecuación deficiente del puesto o plano de trabajo"]
["Condiciones de seguridad","LOCATIVOS","Condiciones de seguridad infraestructura","Mal estado de techos, pisos, paredes, escaleras, puertas, ventanas, "]
[{"$nulls":3},"Hacinamiento"]
[{"$nulls":3},"Áreas de circulación obstruidas"]
[{"$nulls":3},"Nula o deficiente señalización "]
[{"$nulls":3},"Mobiliario y enseres en mal estado"]
[{"$nulls":3},"Trabajo realizado en alturas (superiores a 1.50 mts)"]
[{"$nulls":3},"Mal distribución de espacio "]
[null,"ELECTRICOS ","Condiciones de seguridad instalaciones eléctricas","Exposición a baja tensión"]
[{"$nulls":3},"Exposición a alta tensión"]
[{"$nulls":3},"Exposición a electricidad estática (inducción)"]
[{"$nulls":3},"Instalaciones eléctricas en mal estado"]
[{"$nulls":3},"Instalaciones eléctricas sobrecargadas"]
[{"$nulls":3},"Empalmes defectuosos o conectores en mal estado"]
[null,"MECÁNICO ","Condiciones de seguridad equipos y herramientas","Caída libre de herramientas u objetos por trabajo en alturas"]
[{"$nulls":3},"Exposición a mecanismos en movimiento"]
[{"$nulls":3},"Exposición a proyección de partículas "]
[{"$nulls":3},"Uso de herramientas, Equipos o maquinaria en mal estado"]
[{"$nulls":3},"Manejo inadecuado de herramientas "]
[{"$nulls":3},"Manejo inadecuado de maquinaria"]
[{"$nulls":3},"Manejo de  equipos y o elementos a presión"]
[{"$nulls":3},"Manipulación de objetos o materiales calientes "]
[{"$nulls":3},"Manipulación de herramientas corto punzantes o abrasivas"]
[null,"SANEAMIENTO","Residuos (basuras)","Manejo inadecuado de deshechos en lugares de trabajo"]
[{"$nulls":3},"No existe  clasificación de residuos"]
[{"$nulls":3},"No hay recipientes de basura "]
[null,null,"Agua ","No hay tratamiento para aguas residuales "]
[{"$nulls":3},"No ay suministro de agua potable"]
[null,null,"Servicios Sanitarios ","Escases de dotación de higiene necesaria"]
[{"$nulls":3},"No hay servicios sanitarios "]
[null,"NATURALES","Tormentas eléctricas","Tormentas eléctricas (rayos relámpagos) lluvias, granizadas vendaval"]
[null,null,"Terremotos","Terremotos por zona sísmica activa"]
[null,null,"Erupciones","Erupciones en trabajos realizados cerca a zonas volcánicas "]
[null,"TRANSITO Y TRANSPORTE","Terrestre","Fallas mecánicas"]
[{"$nulls":3},"Deterioro o mal estado de las vías de acceso"]
[{"$nulls":3},"Mal tiempo"]
[{"$nulls":3},"Choques, volcamientos"]
[null,"RIESGOS PUBLICOS","Origen social","Robo"]
[{"$nulls":3},"Atracos secuestros "]
[{"$nulls":3},"Terrorismo"]
[{"$nulls":3},"Minas antipersonales"]
[{"$nulls":3},"Enfrentamiento armado"]
[{"$nulls":3},"Asonadas"]
[{"$nulls":3},"Protestas"]
[{"$nulls":3},"Manifestaciones"]

{"sheet":"Instructivo","index":4,"n_rows":70,"n_cols":6,"rows_kept":70,"merged":[[0,0,0,5],[1,0,2,5],[3,0,5,5],[6,2,6,5],[7,2,7,5],[8,2,8,5],[9,2,9,5],[10,2,10,5],[11,0,13,5],[14,2,14,5],[15,2,15,5],[16,2,16,5],[17,2,17,5],[18,2,18,5],[19,0,21,5],[22,0,23,1],[22,2,22,5],[24,0,26,0],[24,6,26,7],[27,0,29,5],[30,2,30,5],[31,2,31,5],[32,2,32,5],[33,2,33,5],[34,2,34,5],[35,0,37,5],[38,0,39,0],[38,1,39,1],[38,2,38,5],[39,2,39,5],[40,2,40,5],[41,2,41,5],[42,2,42,5],[43,2,43,5],[44,0,47,5],[48,0,49,1],[48,2,48,5],[50,0,53,0],[54,0,56,5],[57,2,57,5],[58,2,58,5],[59,2,59,5],[60,2,60,5],[61,2,61,5],[62,0,64,5],[65,1,65,5],[66,2,66,5],[67,2,67,5],[68,2,68,5],[69,2,69,5],[73,0,73,5]]}
["Instructivo para la valoración del riesgo según norma  GTC 45 2012"]
["El siguiente procedimiento se realiza con el fin de identificar y evaluar los peligros en  la E. D. S. OCCIDENTE, los resultados de la Matriz de identificación de peligros y valoración de riesgos se analizan para elaborar el diagnostico de factores de riesgo, priorizando  los riesgos con un nivel \"NO ACEPTABLE\" implementando posteriormente el plan de trabajo y medidas necesarias para eliminar o reducir jerárquicamente los riesgos latentes identificados . "]
[]
["NIVEL DE DEFICIENCIA Para determinar ND se aplican los siguientes criterios"]
[]
[]
["Nivel de deficiencia","Valor de ND","Significado"]
["Muy Alto (MA)",10,"Se ha(n) detectado peligro(s) que determinan como posible la generación de incidentes, o la eficacia del conjunto de medidas preventivas existentes respecto al riesgo es nula o no existe, o ambos."]
["Alto (A)",6,"Se ha(n) detectado alguno(s) peligro(s) que pueden dar lugar a incidentes significativo(s), o la eficacia del conjunto de medidas preventivas es baja, o ambos."]
["Medio (M)",2,"Se a detectado peligros que pueden dar lugar a incidentes poco significativos o de menor importancia, o la eficacia del conjunto de medidas preventivas existentes es moderada, o ambos"]
["Bajo (B)","No se asigna valor","Nos e ha detectado peligro o la eficacia del conjunto de medidas preventivas existentes es alta, o ambos. El riesgo esta controlado                                  Estos peligros se clasifican directamente en el nivel de riesgo y de intervención cuatro (IV) véase tabla 8."]
["NIVEL DE EXPOSICION Para determinar el NE se aplicaran los siguientes criterios"]
[]
[]
["Nivel de exposición","Valor NE","Significado"]
["Continua (EC)",4,"La situación de exposición se presenta sin interrupción o varias veces con tiempo prolongado durante la jornada laboral"]
["Frecuente (EF)",3,"La situación de exposición se presenta varias veces durante la jornada laboral por tiempos cortos"]
["Ocasional (EO)",2,"La situación de exposición se presenta alguna vez durante la ornada laboral y por un periodo de tiempo corto"]
["Esporádica (EE)",1,"La situación de exposición se presenta de manera eventual"]
["NIVEL DE PROBABILIDAD Para determinar NP se combinan los resultados de ND y NE en la tabla siguiente"]
[]
[]
["Niveles de probabilidad",null,"Nivel de exposición (NE)"]
[null,null,4,3,2,1]
["Nivel de deficiencia (ND)",10,"MA - 40","MA - 30","A -20","A - 10"]
[null,6,"MA - 24","A - 18","A - 12","M - 6"]
[null,2,"M - 8","M - 6","B - 4","B - 2"]
["A continuación se dan los significados para la interpretación de los niveles de probabilidad NP"]
[]
[]
["Nivel de probabilidad","Valor de NP","Significado"]
["Muy Alto (MA)","Entre 40 y 24","Situación deficiente con exposición continua, o muy deficiente con exposición frecuente. Normalmente la materialización del riesgo ocurre con frecuencia."]
["Alto (A)","Entre 20 y 10","Situación deficiente con exposición frecuente u ocasional, o bien situación muy deficiente con exposición ocasional o esporádica.   La materialización del riesgo es posible que suceda varias veces en la vida laboral."]
["Medio (M)","Entre 8 y 6","Situación deficiente con exposición esporádica, o bien situación mejorable con exposición continuada o frecuente.    Es posible que suceda el daño alguna vez."]
["Bajo (B)","Entre 4 y 2","Situación mejorable con exposición ocasional o esporádica, o situación sin anomalía destacable con cualquier nivel de exposición. No es esperable que se materialice el riesgo, aunque puede ser concebible."]
["Para determinar el NIVEL DE COSECUENCIA se tiene en cuenta los siguientes parámetros"]
[]
[]
["Nivel de Consecuencias ","NC","Significado"]
[null,null,"Daños personales"]
["Mortal o Catastrófico (M)",100,"Muerte (s)"]
["Muy grave (MG)",60,"Lesiones o enfermedades graves irreparables (Incapacidad permanente parcial o invalidez)."]
["Grave (G)",25,"Lesiones o enfermedades con incapacidad laboral temporal (ILT)."]
["Leve (L)",10,"Lesiones o enfermedades que no requieren incapacidad."]
["Los resultados de las NP y NC se combinan para obtener el nivel de riesgo el cual se interpreta de acuerdo con los criterios del NR"]
[]
[]
[]
["Nivel de riesgo y de intervención             NR = NP x NC",null,"Nivel de probabilidad (NP)"]
[null,null,"40--24","20--10","8--6","4--2"]
["Nivel de consecuencia (NC)",100,"I                                          4 000-2400","I                            2 000-1000","I                     800-600","II                  400-200"]
[null,60,"I                                           2400-1440","I                               1200-600","II                        480-360","II 200                III 120"]
[null,25,"I                                           1 000-600","II                            500-250","II                         200-150","III                        100-50"]
[null,10,"II                                            400-240","II 200                    III 100","III                        80-60","III 40                  IV 20"]
["El NIVEL DE RIESGO  se interpreta según los siguientes significados"]
[]
[]
["Nivel de riesgo","Valor de NR","Significado"]
["I","4000-600","Situación crítica. Suspender actividades hasta que el riesgo esté bajo control. Intervención urgente."]
["II","500-150","Corregir y adoptar medidas de control de inmediato."]
["Ill","120-40","Mejorar si es posible. Sería conveniente justificar la intervención y su rentabilidad."]
["IV",20,"Mantener las medidas de control existentes, pero se deberían considerar soluciones o mejoras y se deben hacer comprobaciones periódicas para asegurar que el riesgo aún es aceptable."]
[" Por ultimo según los resultados de la tabla anterior se clasifica la ACEPTABILIDAD del riesgo"]
[]
[]
["Nivel de riesgo","Significado"]
["I","No Aceptable ","Situación critica, corrección urgente"]
["II","No Aceptable o Aceptable con control específico","Corregir o adoptar medidas de control"]
["III","Mejorable ","Mejorar el control existente"]
["IV","Aceptable","No intervenir, salvo que u análisis mas preciso lo justifique"]